Workbook

Sheet 4. 2011-2014 LRAM
B3: Legend | C3: User Inputs (Green)
C4: Auto Populated Cells (White)
C5: Instructions (Grey)
B7: Instructions | C7: 1. LDCs can apply for disposition of LRAMVA amounts at any time, but at a minimum, must do so as part of a cost of service (COS) application. The following LRAMVA work forms apply to LDCs that need to recover lost revenues from the 2011-2014 period. Please input or manually link the savings, adjustments and program savings persistence data in these tables from the LDC's Persistence Reports provided by the IESO (in Tab 7). As noted earlier, persistence data is available upon request from the IESO. Please also be advised that the same rate classes (of up to 14) are carried over from the Summary Tab 1.
C8: 2. Please ensure that the IESO verified savings adjustments apply back to the program year it relates to. For example, savings adjustments related to 2012 programs that were reported by the IESO in 2013 should be included in the 2012 program savings table. In order for persisting savings to be claimed in future years, past year's initiative level savings results need to be filled out in the tables below. If the IESO adjustments were made available to the LDC after the LRAMVA was approved, the persistence of those savings adjustments in the future can be claimed as approved LRAMVA amounts are considered to be final.
C9: 3. The work forms below include the monthly multipliers for most programs in order to claim demand savings from energy efficiency programs, consistent with the monthly multipliers indicated in the OEB's updated LRAM policy related to peak demand savings in EB-2016-0182. Demand Response (DR3) savings should generally not be included with the LRAMVA calculation, unless suported by empirical evidence. LDCs are requested to confirm the monthly multipliers for all programs each year as placeholder values are provided. If a different monthly multiplier is used, please include rationale in Tab 1-a and highlight the new multiplier that has been used.
C10: 4. LDC are requested to input the applicable rate class allocation percentages to allocate actual savings to the rate classes. The generic template currently includes the same allocation percentage for program savings and its savings adjustments. If a different allocation is proposed for savings adjustments, LDCs must provide supporting rationale in Tab 1-a and highlight the change.
C11: 5. The persistence of future savings is expected to be included in the distributor's load forecast after re-basing. LDCs are requested to delete the applicable savings persistence rows (auto-calculated after the LRAMVA totals for the year) if future year's persistence of savings is already captured in the updated load forecast. Please also provide assumptions about the years in which persistence is captured in the load forecast calculation in the "Notes" section below each table.
B13: Tables | C13: Table 4-a. 2011 Lost Revenues
C14: Table 4-b. 2012 Lost Revenues
C15: Table 4-c. 2013 Lost Revenues
C16: Table 4-d. 2014 Lost Revenues
B18: Table 4-a. 2011 Lost Revenues Work Form
B19: Program | C19: Results Status | D19: Net Energy Savings (kWh) | E19: Net Energy Savings Persistence (kWh) | Q19: Monthly Multiplier | R19: Net Demand Savings (kW) | S19: Net Peak Demand Savings Persistence (kW) | AE19: Rate Allocations for LRAMVA
D20: 2011 | E20: 2012 | F20: 2013 | G20: 2014 | H20: 2015 | I20: 2016 | J20: 2017 | K20: 2018 | L20: 2019 | M20: 2020 | N20: 2021 | O20: 2023 | P20: 2024 | R20: 2011 | S20: 2012 | T20: 2013 | U20: 2014 | V20: 2015 | W20: 2016 | X20: 2017 | Y20: 2018 | Z20: 2019 | AA20: 2020 | AB20: 2021 | AC20: 2022 | AD20: 2023 | AE20: Residential | AF20: GS<50 kW | AG20: GS 50 to 4,999 kW | AH20: Large Use | AI20: Street Lights | AJ20: Unmetered Scattered Load | AS20: Total | AT20: Check | AU20: (If =/= 0, shares allocated to kW-billed classes are adjusted so total is euqal to 100%. This may occur due to differences in kWh and kW savings allocations.)
B21: Consumer Program | AE21: kWh | AF21: kWh | AG21: kWh | AH21: kWh | AI21: kWh | AJ21: kWh | AK21: 0 | AL21: 0 | AM21: 0 | AN21: 0 | AO21: 0 | AP21: 0 | AQ21: 0 | AR21: 0
A22: 1 | B22: Appliance Retirement | C22: Verified | D22: 69601.599 | E22: 69601.599 | F22: 69601.599 | G22: 69398.829 | H22: 53021.473 | I22: 0 | J22: 0 | K22: 0 | L22: 0 | M22: 0 | N22: 0 | O22: 0 | P22: 0 | R22: 9.759 | S22: 9.759 | T22: 9.759 | U22: 9.532 | V22: 6.971 | W22: 0 | X22: 0 | Y22: 0 | Z22: 0 | AA22: 0 | AB22: 0 | AC22: 0 | AD22: 0 | AE22: 1 | AF22: 0 | AG22: 0 | AH22: 0 | AS22: =SUM(AE22:AH22) -> 1 | AT22: =IF(AS22=1,0,IF(AS22=0,0,1)) -> 0
B23: Adjustment to 2011 savings | C23: True-up | AE23: =AE22 -> 1 | AF23: =AF22 -> 0 | AG23: =AG22 -> 0 | AH23: =AH22 -> 0 | AI23: =AI22 -> 0 | AJ23: =AJ22 -> 0 | AK23: =AK22 -> 0 | AL23: =AL22 -> 0 | AM23: =AM22 -> 0 | AN23: =AN22 -> 0 | AO23: =AO22 -> 0 | AP23: =AP22 -> 0 | AQ23: =AQ22 -> 0 | AR23: =AR22 -> 0 | AT23: =IF(AS23=1,0,IF(AS23=0,0,1)) -> 0
AT24: =IF(AS24=1,0,IF(AS24=0,0,1)) -> 0
A25: 2 | B25: Appliance Exchange | C25: Verified | D25: 2645.557 | E25: 2645.557 | F25: 2645.557 | G25: 1344.904 | H25: 0 | I25: 0 | J25: 0 | K25: 0 | L25: 0 | M25: 0 | N25: 0 | O25: 0 | P25: 0 | R25: 2.209 | S25: 2.209 | T25: 2.209 | U25: 0.754 | V25: 0 | W25: 0 | X25: 0 | Y25: 0 | Z25: 0 | AA25: 0 | AB25: 0 | AC25: 0 | AD25: 0 | AE25: 1 | AF25: 0 | AS25: =SUM(AE25:AH25) -> 1 | AT25: =IF(AS25=1,0,IF(AS25=0,0,1)) -> 0
B26: Adjustment to 2011 savings | C26: True-up | AE26: =AE25 -> 1 | AF26: =AF25 -> 0 | AG26: =AG25 -> 0 | AH26: =AH25 -> 0 | AI26: =AI25 -> 0 | AJ26: =AJ25 -> 0 | AK26: =AK25 -> 0 | AL26: =AL25 -> 0 | AM26: =AM25 -> 0 | AN26: =AN25 -> 0 | AO26: =AO25 -> 0 | AP26: =AP25 -> 0 | AQ26: =AQ25 -> 0 | AR26: =AR25 -> 0 | AT26: =IF(AS26=1,0,IF(AS26=0,0,1)) -> 0
AT27: =IF(AS27=1,0,IF(AS27=0,0,1)) -> 0
A28: 3 | B28: HVAC Incentives | C28: Verified | D28: 230819.654 | E28: 230819.654 | F28: 230819.654 | G28: 230819.654 | H28: 230819.654 | I28: 230819.654 | J28: 230819.654 | K28: 230819.654 | L28: 230819.654 | M28: 230819.654 | N28: 230819.654 | O28: 230819.654 | P28: 230819.654 | R28: 118.139 | S28: 118.139 | T28: 118.139 | U28: 118.139 | V28: 118.139 | W28: 118.139 | X28: 118.139 | Y28: 118.139 | Z28: 118.139 | AA28: 118.139 | AB28: 118.139 | AC28: 118.139 | AD28: 118.139 | AE28: 1 | AS28: =SUM(AE28:AH28) -> 1 | AT28: =IF(AS28=1,0,IF(AS28=0,0,1)) -> 0
B29: Adjustment to 2011 savings | C29: True-up | D29: -46099.304 | E29: -46099.304 | F29: -46099.304 | G29: -46099.304 | H29: -46099.304 | I29: -46099.304 | J29: -46099.304 | K29: -46099.304 | L29: -46099.304 | M29: -46099.304 | N29: -46099.304 | O29: -46099.304 | P29: -46099.304 | R29: -23.686 | S29: -23.686 | T29: -23.686 | U29: -23.686 | V29: -23.686 | W29: -23.686 | X29: -23.686 | Y29: -23.686 | Z29: -23.686 | AA29: -23.686 | AB29: -23.686 | AC29: -23.686 | AD29: -23.686 | AE29: =AE28 -> 1 | AF29: =AF28 -> 0 | AG29: =AG28 -> 0 | AH29: =AH28 -> 0 | AI29: =AI28 -> 0 | AJ29: =AJ28 -> 0 | AK29: =AK28 -> 0 | AL29: =AL28 -> 0 | AM29: =AM28 -> 0 | AN29: =AN28 -> 0 | AO29: =AO28 -> 0 | AP29: =AP28 -> 0 | AQ29: =AQ28 -> 0 | AR29: =AR28 -> 0 | AT29: =IF(AS29=1,0,IF(AS29=0,0,1)) -> 0
AT30: =IF(AS30=1,0,IF(AS30=0,0,1)) -> 0
A31: 4 | B31: Conservation Instant Coupon Booklet | C31: Verified | D31: 98588.392 | E31: 98588.392 | F31: 98588.392 | G31: 98588.392 | H31: 90691.192 | I31: 82063.834 | J31: 63466.74 | K31: 63073.311 | L31: 79597.869 | M31: 30000.961 | N31: 24485.03033 | R31: 6.103 | S31: 6.103 | T31: 6.103 | U31: 6.103 | V31: 5.738 | W31: 5.338 | X31: 4.477 | Y31: 4.432 | Z31: 5.197 | AA31: 2.901 | AB31: 0.605 | AE31: 1 | AS31: =SUM(AE31:AH31) -> 1 | AT31: =IF(AS31=1,0,IF(AS31=0,0,1)) -> 0
B32: Adjustment to 2011 savings | C32: True-up | D32: 1382.07 | E32: 1382.07 | F32: 1382.07 | G32: 1382.07 | H32: 1382.07 | I32: 1262.77 | J32: 774.699 | K32: 773.644 | L32: 773.644 | M32: 274.036 | N32: 107.5 | R32: 0.081 | S32: 0.081 | T32: 0.081 | U32: 0.081 | V32: 0.081 | W32: 0.075 | X32: 0.053 | Y32: 0.052 | Z32: 0.052 | AA32: 0.029 | AB32: 0.006 | AE32: =AE31 -> 1 | AF32: =AF31 -> 0 | AG32: =AG31 -> 0 | AH32: =AH31 -> 0 | AI32: =AI31 -> 0 | AJ32: =AJ31 -> 0 | AK32: =AK31 -> 0 | AL32: =AL31 -> 0 | AM32: =AM31 -> 0 | AN32: =AN31 -> 0 | AO32: =AO31 -> 0 | AP32: =AP31 -> 0 | AQ32: =AQ31 -> 0 | AR32: =AR31 -> 0 | AT32: =IF(AS32=1,0,IF(AS32=0,0,1)) -> 0
AT33: =IF(AS33=1,0,IF(AS33=0,0,1)) -> 0
A34: 5 | B34: Bi-Annual Retailer Event | C34: Verified | D34: 147341.815 | E34: 147341.815 | F34: 147341.815 | G34: 147341.815 | H34: 134659.568 | I34: 120804.747 | J34: 91079.078 | K34: 90746.825 | L34: 117283.893 | M34: 37635.379 | N34: 28777.253 | R34: 8.431 | S34: 8.431 | T34: 8.431 | U34: 8.431 | V34: 7.843 | W34: 7.202 | X34: 5.825 | Y34: 5.787 | Z34: 7.016 | AA34: 3.328 | AB34: -0.36 | AE34: 1 | AS34: =SUM(AE34:AH34) -> 1 | AT34: =IF(AS34=1,0,IF(AS34=0,0,1)) -> 0
B35: Adjustment to 2011 savings | C35: True-up | D35: 10947.005 | E35: 10947.005 | F35: 10947.005 | G35: 10947.005 | H35: 10947.005 | I35: 9947.69 | J35: 5370.65 | K35: 5369.556 | L35: 5369.556 | M35: 1184.566 | N35: -210.4306667 | R35: 0.541 | S35: 0.541 | T35: 0.541 | U35: 0.541 | V35: 0.541 | W35: 0.495 | X35: 0.283 | Y35: 0.282 | Z35: 0.282 | AA35: 0.089 | AB35: -0.104 | AE35: =AE34 -> 1 | AF35: =AF34 -> 0 | AG35: =AG34 -> 0 | AH35: =AH34 -> 0 | AI35: =AI34 -> 0 | AJ35: =AJ34 -> 0 | AK35: =AK34 -> 0 | AL35: =AL34 -> 0 | AM35: =AM34 -> 0 | AN35: =AN34 -> 0 | AO35: =AO34 -> 0 | AP35: =AP34 -> 0 | AQ35: =AQ34 -> 0 | AR35: =AR34 -> 0 | AT35: =IF(AS35=1,0,IF(AS35=0,0,1)) -> 0
AT36: =IF(AS36=1,0,IF(AS36=0,0,1)) -> 0
A37: 6 | B37: Retailer Co-op | C37: Verified | D37: 0 | E37: 0 | F37: 0 | G37: 0 | H37: 0 | I37: 0 | J37: 0 | K37: 0 | L37: 0 | M37: 0 | N37: 0 | O37: 0 | P37: 0 | AS37: =SUM(AE37:AR37) -> 0 | AT37: =IF(AS37=1,0,IF(AS37=0,0,1)) -> 0
B38: Adjustment to 2011 savings | C38: True-up | AE38: =AE37 -> 0 | AF38: =AF37 -> 0 | AG38: =AG37 -> 0 | AH38: =AH37 -> 0 | AI38: =AI37 -> 0 | AJ38: =AJ37 -> 0 | AK38: =AK37 -> 0 | AL38: =AL37 -> 0 | AM38: =AM37 -> 0 | AN38: =AN37 -> 0 | AO38: =AO37 -> 0 | AP38: =AP37 -> 0 | AQ38: =AQ37 -> 0 | AR38: =AR37 -> 0 | AT38: =IF(AS38=1,0,IF(AS38=0,0,1)) -> 0
AT39: =IF(AS39=1,0,IF(AS39=0,0,1)) -> 0
A40: 7 | B40: Residential Demand Response | C40: Verified | AS40: =SUM(AE40:AR40) -> 0 | AT40: =IF(AS40=1,0,IF(AS40=0,0,1)) -> 0
B41: Adjustment to 2011 savings | C41: True-up | AE41: =AE40 -> 0 | AF41: =AF40 -> 0 | AG41: =AG40 -> 0 | AH41: =AH40 -> 0 | AI41: =AI40 -> 0 | AJ41: =AJ40 -> 0 | AK41: =AK40 -> 0 | AL41: =AL40 -> 0 | AM41: =AM40 -> 0 | AN41: =AN40 -> 0 | AO41: =AO40 -> 0 | AP41: =AP40 -> 0 | AQ41: =AQ40 -> 0 | AR41: =AR40 -> 0 | AT41: =IF(AS41=1,0,IF(AS41=0,0,1)) -> 0
AT42: =IF(AS42=1,0,IF(AS42=0,0,1)) -> 0
A43: 8 | B43: Residential Demand Response (IHD) | C43: Verified | AS43: =SUM(AE43:AR43) -> 0 | AT43: =IF(AS43=1,0,IF(AS43=0,0,1)) -> 0
B44: Adjustment to 2011 savings | C44: True-up | AE44: =AE43 -> 0 | AF44: =AF43 -> 0 | AG44: =AG43 -> 0 | AH44: =AH43 -> 0 | AI44: =AI43 -> 0 | AJ44: =AJ43 -> 0 | AK44: =AK43 -> 0 | AL44: =AL43 -> 0 | AM44: =AM43 -> 0 | AN44: =AN43 -> 0 | AO44: =AO43 -> 0 | AP44: =AP43 -> 0 | AQ44: =AQ43 -> 0 | AR44: =AR43 -> 0 | AT44: =IF(AS44=1,0,IF(AS44=0,0,1)) -> 0
AT45: =IF(AS45=1,0,IF(AS45=0,0,1)) -> 0
A46: 9 | B46: Residential New Construction | C46: Verified | AS46: =SUM(AE46:AR46) -> 0 | AT46: =IF(AS46=1,0,IF(AS46=0,0,1)) -> 0
B47: Adjustment to 2011 savings | C47: True-up | AE47: =AE46 -> 0 | AF47: =AF46 -> 0 | AG47: =AG46 -> 0 | AH47: =AH46 -> 0 | AI47: =AI46 -> 0 | AJ47: =AJ46 -> 0 | AK47: =AK46 -> 0 | AL47: =AL46 -> 0 | AM47: =AM46 -> 0 | AN47: =AN46 -> 0 | AO47: =AO46 -> 0 | AP47: =AP46 -> 0 | AQ47: =AQ46 -> 0 | AR47: =AR46 -> 0 | AT47: =IF(AS47=1,0,IF(AS47=0,0,1)) -> 0
AH48: =AG49+AH49 -> 0.803183888 | AT48: =IF(AS48=1,0,IF(AS48=0,0,1)) -> 0
B49: Business Program | AG49: 0.4445 | AH49: 0.358683888 | AS49: =1-AF50-AE50 -> 0.7998
A50: 10 | B50: Retrofit | C50: Verified | D50: 1921835.006 | E50: 1921835.006 | F50: 1921835.006 | G50: 1921835.006 | H50: 1921835.006 | I50: 1921835.006 | J50: 1921835.006 | K50: 1921835.006 | L50: 1921835.006 | M50: 1404474.748 | N50: 1232021.329 | O50: 973341.1997 | P50: 714661.0707 | Q50: 12 | R50: 360.25 | S50: 360.25 | T50: 360.25 | U50: 360.25 | V50: 360.25 | W50: 360.25 | X50: 360.25 | Y50: 360.25 | Z50: 360.25 | AA50: 240.676 | AB50: 121.102 | AC50: 1.528 | AD50: -118.046 | AE50: 0 | AF50: 0.2002 | AG50: =$AS$49/$AH$48*AG49 -> 0.4426272804 | AH50: =$AS$49/$AH$48*AH49 -> 0.3571727196 | AS50: =SUM(AE50:AH50) -> 1 | AT50: =IF(AS50=1,0,IF(AS50=0,0,1)) -> 0
B51: Adjustment to 2011 savings | C51: True-up | D51: 14398.131 | E51: 14398.131 | F51: 14398.131 | G51: 13517.883 | H51: 13517.883 | I51: 13517.883 | J51: 4474.606 | K51: 4474.606 | L51: 4474.606 | M51: 4474.606 | N51: 4474.606 | O51: 4474.606 | P51: 4474.606 | Q51: =Q50 -> 12 | R51: 3.378 | S51: 3.378 | T51: 3.378 | U51: 3.151 | V51: 3.151 | W51: 3.151 | X51: 0.814 | Y51: 0.814 | Z51: 0.814 | AA51: 0.814 | AB51: 0.814 | AC51: 0.814 | AD51: 0.814 | AE51: =AE50 -> 0 | AF51: =AF50 -> 0.2002 | AG51: =AG50 -> 0.4426272804 | AH51: =AH50 -> 0.3571727196 | AI51: =AI50 -> 0 | AJ51: =AJ50 -> 0 | AK51: =AK50 -> 0 | AL51: =AL50 -> 0 | AM51: =AM50 -> 0 | AN51: =AN50 -> 0 | AO51: =AO50 -> 0 | AP51: =AP50 -> 0 | AQ51: =AQ50 -> 0 | AR51: =AR50 -> 0 | AT51: =IF(AS51=1,0,IF(AS51=0,0,1)) -> 0
AT52: =IF(AS52=1,0,IF(AS52=0,0,1)) -> 0
A53: 11 | B53: Direct Install Lighting | C53: Verified | D53: 264375.711 | E53: 264375.711 | F53: 263791.505 | G53: 207209.643 | H53: 207209.643 | I53: 207209.643 | J53: 66328.488 | K53: 64585.815 | L53: 64585.815 | M53: 64585.815 | N53: 64585.815 | O53: 64585.815 | P53: 64585.815 | Q53: 12 | R53: 105.013 | S53: 105.013 | T53: 104.852 | U53: 84.607 | V53: 84.607 | W53: 84.607 | X53: 28.342 | Y53: 26.02 | Z53: 26.02 | AA53: 26.02 | AB53: 26.02 | AC53: 26.02 | AD53: 26.02 | AE53: 0 | AF53: 0.990740741 | AG53: =1-AF53-AE53 -> 0.009259259 | AS53: =SUM(AE53:AH53) -> 1 | AT53: =IF(AS53=1,0,IF(AS53=0,0,1)) -> 0
B54: Adjustment to 2011 savings | C54: True-up | D54: 15858.095 | E54: 15858.095 | F54: 15858.095 | G54: 15858.095 | H54: 15858.095 | I54: 15858.095 | J54: 4996.991 | K54: 4996.991 | L54: 4996.991 | M54: 4996.991 | N54: 4996.991 | O54: 4996.991 | P54: 4996.991 | Q54: =Q53 -> 12 | R54: 5.438 | S54: 5.438 | T54: 5.438 | U54: 5.438 | V54: 5.438 | W54: 5.438 | X54: 1.534 | Y54: 1.534 | Z54: 1.534 | AA54: 1.534 | AB54: 1.534 | AC54: 1.534 | AD54: 1.534 | AE54: =AE53 -> 0 | AF54: =AF53 -> 0.990740741 | AG54: =AG53 -> 0.009259259 | AH54: =AH53 -> 0 | AI54: =AI53 -> 0 | AJ54: =AJ53 -> 0 | AK54: =AK53 -> 0 | AL54: =AL53 -> 0 | AM54: =AM53 -> 0 | AN54: =AN53 -> 0 | AO54: =AO53 -> 0 | AP54: =AP53 -> 0 | AQ54: =AQ53 -> 0 | AR54: =AR53 -> 0 | AT54: =IF(AS54=1,0,IF(AS54=0,0,1)) -> 0
AT55: =IF(AS55=1,0,IF(AS55=0,0,1)) -> 0
A56: 12 | B56: Building Commissioning | C56: Verified | Q56: 3 | AS56: =SUM(AE56:AR56) -> 0 | AT56: =IF(AS56=1,0,IF(AS56=0,0,1)) -> 0
B57: Adjustment to 2011 savings | C57: True-up | Q57: =Q56 -> 3 | AE57: =AE56 -> 0 | AF57: =AF56 -> 0 | AG57: =AG56 -> 0 | AH57: =AH56 -> 0 | AI57: =AI56 -> 0 | AJ57: =AJ56 -> 0 | AK57: =AK56 -> 0 | AL57: =AL56 -> 0 | AM57: =AM56 -> 0 | AN57: =AN56 -> 0 | AO57: =AO56 -> 0 | AP57: =AP56 -> 0 | AQ57: =AQ56 -> 0 | AR57: =AR56 -> 0 | AT57: =IF(AS57=1,0,IF(AS57=0,0,1)) -> 0
AT58: =IF(AS58=1,0,IF(AS58=0,0,1)) -> 0
A59: 13 | B59: New Construction | C59: Verified | Q59: 12 | AS59: =SUM(AE59:AR59) -> 0 | AT59: =IF(AS59=1,0,IF(AS59=0,0,1)) -> 0
B60: Adjustment to 2011 savings | C60: True-up | Q60: =Q59 -> 12 | AE60: =AE59 -> 0 | AF60: =AF59 -> 0 | AG60: =AG59 -> 0 | AH60: =AH59 -> 0 | AI60: =AI59 -> 0 | AJ60: =AJ59 -> 0 | AK60: =AK59 -> 0 | AL60: =AL59 -> 0 | AM60: =AM59 -> 0 | AN60: =AN59 -> 0 | AO60: =AO59 -> 0 | AP60: =AP59 -> 0 | AQ60: =AQ59 -> 0 | AR60: =AR59 -> 0 | AT60: =IF(AS60=1,0,IF(AS60=0,0,1)) -> 0
AT61: =IF(AS61=1,0,IF(AS61=0,0,1)) -> 0
A62: 14 | B62: Energy Audit | C62: Verified | D62: 0 | E62: 0 | F62: 0 | G62: 0 | H62: 0 | I62: 0 | J62: 0 | K62: 0 | L62: 0 | M62: 0 | N62: 0 | O62: 0 | P62: 0 | Q62: 12 | AE62: 0 | AF62: 0 | AG62: 1 | AH62: 0 | AS62: =SUM(AE62:AR62) -> 1 | AT62: =IF(AS62=1,0,IF(AS62=0,0,1)) -> 0
B63: Adjustment to 2011 savings | C63: True-up | D63: 50352.509 | E63: 50352.509 | F63: 50352.509 | G63: 50352.509 | H63: 50352.509 | I63: 0 | J63: 0 | K63: 0 | L63: 0 | M63: 0 | N63: 0 | O63: 0 | P63: 0 | Q63: =Q62 -> 12 | R63: 10.354 | S63: 10.354 | T63: 10.354 | U63: 10.354 | V63: 10.354 | W63: 0 | X63: 0 | Y63: 0 | Z63: 0 | AB63: 0 | AD63: 0 | AE63: =AE62 -> 0 | AF63: =AF62 -> 0 | AG63: =AG62 -> 1 | AH63: =AH62 -> 0 | AI63: =AI62 -> 0 | AJ63: =AJ62 -> 0 | AK63: =AK62 -> 0 | AL63: =AL62 -> 0 | AM63: =AM62 -> 0 | AN63: =AN62 -> 0 | AO63: =AO62 -> 0 | AP63: =AP62 -> 0 | AQ63: =AQ62 -> 0 | AR63: =AR62 -> 0 | AT63: =IF(AS63=1,0,IF(AS63=0,0,1)) -> 0
AT64: =IF(AS64=1,0,IF(AS64=0,0,1)) -> 0
A65: 15 | B65: Small Commercial Demand Response | C65: Verified | AS65: =SUM(AE65:AR65) -> 0 | AT65: =IF(AS65=1,0,IF(AS65=0,0,1)) -> 0
B66: Adjustment to 2011 savings | C66: True-up | AE66: =AE65 -> 0 | AF66: =AF65 -> 0 | AG66: =AG65 -> 0 | AH66: =AH65 -> 0 | AI66: =AI65 -> 0 | AJ66: =AJ65 -> 0 | AK66: =AK65 -> 0 | AL66: =AL65 -> 0 | AM66: =AM65 -> 0 | AN66: =AN65 -> 0 | AO66: =AO65 -> 0 | AP66: =AP65 -> 0 | AQ66: =AQ65 -> 0 | AR66: =AR65 -> 0 | AT66: =IF(AS66=1,0,IF(AS66=0,0,1)) -> 0
AT67: =IF(AS67=1,0,IF(AS67=0,0,1)) -> 0
A68: 16 | B68: Small Commercial Demand Response (IHD) | C68: Verified | AS68: =SUM(AE68:AR68) -> 0 | AT68: =IF(AS68=1,0,IF(AS68=0,0,1)) -> 0
B69: Adjustment to 2011 savings | C69: True-up | AE69: =AE68 -> 0 | AF69: =AF68 -> 0 | AG69: =AG68 -> 0 | AH69: =AH68 -> 0 | AI69: =AI68 -> 0 | AJ69: =AJ68 -> 0 | AK69: =AK68 -> 0 | AL69: =AL68 -> 0 | AM69: =AM68 -> 0 | AN69: =AN68 -> 0 | AO69: =AO68 -> 0 | AP69: =AP68 -> 0 | AQ69: =AQ68 -> 0 | AR69: =AR68 -> 0 | AT69: =IF(AS69=1,0,IF(AS69=0,0,1)) -> 0
AT70: =IF(AS70=1,0,IF(AS70=0,0,1)) -> 0
A71: 17 | B71: Demand Response 3 | C71: Verified | AS71: =SUM(AE71:AR71) -> 0 | AT71: =IF(AS71=1,0,IF(AS71=0,0,1)) -> 0
B72: Adjustment to 2011 savings | C72: True-up | AE72: =AE71 -> 0 | AF72: =AF71 -> 0 | AG72: =AG71 -> 0 | AH72: =AH71 -> 0 | AI72: =AI71 -> 0 | AJ72: =AJ71 -> 0 | AK72: =AK71 -> 0 | AL72: =AL71 -> 0 | AM72: =AM71 -> 0 | AN72: =AN71 -> 0 | AO72: =AO71 -> 0 | AP72: =AP71 -> 0 | AQ72: =AQ71 -> 0 | AR72: =AR71 -> 0 | AT72: =IF(AS72=1,0,IF(AS72=0,0,1)) -> 0
AT73: =IF(AS73=1,0,IF(AS73=0,0,1)) -> 0
B74: Industrial Program | AT74: =IF(AS74=1,0,IF(AS74=0,0,1)) -> 0
A75: 18 | B75: Process & System Upgrades | C75: Verified | Q75: 12 | AS75: =SUM(AE75:AR75) -> 0 | AT75: =IF(AS75=1,0,IF(AS75=0,0,1)) -> 0
B76: Adjustment to 2011 savings | C76: True-up | Q76: =Q75 -> 12 | AE76: =AE75 -> 0 | AF76: =AF75 -> 0 | AG76: =AG75 -> 0 | AH76: =AH75 -> 0 | AI76: =AI75 -> 0 | AJ76: =AJ75 -> 0 | AK76: =AK75 -> 0 | AL76: =AL75 -> 0 | AM76: =AM75 -> 0 | AN76: =AN75 -> 0 | AO76: =AO75 -> 0 | AP76: =AP75 -> 0 | AQ76: =AQ75 -> 0 | AR76: =AR75 -> 0 | AT76: =IF(AS76=1,0,IF(AS76=0,0,1)) -> 0
AT77: =IF(AS77=1,0,IF(AS77=0,0,1)) -> 0
A78: 19 | B78: Monitoring & Targeting | C78: Verified | Q78: 12 | AS78: =SUM(AE78:AR78) -> 0 | AT78: =IF(AS78=1,0,IF(AS78=0,0,1)) -> 0
B79: Adjustment to 2011 savings | C79: True-up | Q79: =Q78 -> 12 | AE79: =AE78 -> 0 | AF79: =AF78 -> 0 | AG79: =AG78 -> 0 | AH79: =AH78 -> 0 | AI79: =AI78 -> 0 | AJ79: =AJ78 -> 0 | AK79: =AK78 -> 0 | AL79: =AL78 -> 0 | AM79: =AM78 -> 0 | AN79: =AN78 -> 0 | AO79: =AO78 -> 0 | AP79: =AP78 -> 0 | AQ79: =AQ78 -> 0 | AR79: =AR78 -> 0 | AT79: =IF(AS79=1,0,IF(AS79=0,0,1)) -> 0
AT80: =IF(AS80=1,0,IF(AS80=0,0,1)) -> 0
A81: 20 | B81: Energy Manager | C81: Verified | Q81: 12 | AS81: =SUM(AE81:AR81) -> 0 | AT81: =IF(AS81=1,0,IF(AS81=0,0,1)) -> 0
B82: Adjustment to 2011 savings | C82: True-up | Q82: =Q81 -> 12 | AE82: =AE81 -> 0 | AF82: =AF81 -> 0 | AG82: =AG81 -> 0 | AH82: =AH81 -> 0 | AI82: =AI81 -> 0 | AJ82: =AJ81 -> 0 | AK82: =AK81 -> 0 | AL82: =AL81 -> 0 | AM82: =AM81 -> 0 | AN82: =AN81 -> 0 | AO82: =AO81 -> 0 | AP82: =AP81 -> 0 | AQ82: =AQ81 -> 0 | AR82: =AR81 -> 0 | AT82: =IF(AS82=1,0,IF(AS82=0,0,1)) -> 0
AT83: =IF(AS83=1,0,IF(AS83=0,0,1)) -> 0
A84: 21 | B84: Retrofit | C84: Verified | Q84: 12 | AS84: =SUM(AE84:AR84) -> 0 | AT84: =IF(AS84=1,0,IF(AS84=0,0,1)) -> 0
B85: Adjustment to 2011 savings | C85: True-up | Q85: =Q84 -> 12 | AE85: =AE84 -> 0 | AF85: =AF84 -> 0 | AG85: =AG84 -> 0 | AH85: =AH84 -> 0 | AI85: =AI84 -> 0 | AJ85: =AJ84 -> 0 | AK85: =AK84 -> 0 | AL85: =AL84 -> 0 | AM85: =AM84 -> 0 | AN85: =AN84 -> 0 | AO85: =AO84 -> 0 | AP85: =AP84 -> 0 | AQ85: =AQ84 -> 0 | AR85: =AR84 -> 0 | AT85: =IF(AS85=1,0,IF(AS85=0,0,1)) -> 0
AT86: =IF(AS86=1,0,IF(AS86=0,0,1)) -> 0
A87: 22 | B87: Demand Response 3 | C87: Verified | AS87: =SUM(AE87:AR87) -> 0 | AT87: =IF(AS87=1,0,IF(AS87=0,0,1)) -> 0
B88: Adjustment to 2011 savings | C88: True-up | AE88: =AE87 -> 0 | AF88: =AF87 -> 0 | AG88: =AG87 -> 0 | AH88: =AH87 -> 0 | AI88: =AI87 -> 0 | AJ88: =AJ87 -> 0 | AK88: =AK87 -> 0 | AL88: =AL87 -> 0 | AM88: =AM87 -> 0 | AN88: =AN87 -> 0 | AO88: =AO87 -> 0 | AP88: =AP87 -> 0 | AQ88: =AQ87 -> 0 | AR88: =AR87 -> 0 | AT88: =IF(AS88=1,0,IF(AS88=0,0,1)) -> 0
AT89: =IF(AS89=1,0,IF(AS89=0,0,1)) -> 0
B90: Home Assistance Program | AT90: =IF(AS90=1,0,IF(AS90=0,0,1)) -> 0
A91: 23 | B91: Home Assistance Program | C91: Verified | AS91: =SUM(AE91:AR91) -> 0 | AT91: =IF(AS91=1,0,IF(AS91=0,0,1)) -> 0
B92: Adjustment to 2011 savings | C92: True-up | AE92: =AE91 -> 0 | AF92: =AF91 -> 0 | AG92: =AG91 -> 0 | AH92: =AH91 -> 0 | AI92: =AI91 -> 0 | AJ92: =AJ91 -> 0 | AK92: =AK91 -> 0 | AL92: =AL91 -> 0 | AM92: =AM91 -> 0 | AN92: =AN91 -> 0 | AO92: =AO91 -> 0 | AP92: =AP91 -> 0 | AQ92: =AQ91 -> 0 | AR92: =AR91 -> 0 | AT92: =IF(AS92=1,0,IF(AS92=0,0,1)) -> 0
AT93: =IF(AS93=1,0,IF(AS93=0,0,1)) -> 0
B94: Aboriginal Program | AT94: =IF(AS94=1,0,IF(AS94=0,0,1)) -> 0
A95: 24 | B95: Home Assistance Program | C95: Verified | AS95: =SUM(AE95:AR95) -> 0 | AT95: =IF(AS95=1,0,IF(AS95=0,0,1)) -> 0
B96: Adjustment to 2011 savings | C96: True-up | AE96: =AE95 -> 0 | AF96: =AF95 -> 0 | AG96: =AG95 -> 0 | AH96: =AH95 -> 0 | AI96: =AI95 -> 0 | AJ96: =AJ95 -> 0 | AK96: =AK95 -> 0 | AL96: =AL95 -> 0 | AM96: =AM95 -> 0 | AN96: =AN95 -> 0 | AO96: =AO95 -> 0 | AP96: =AP95 -> 0 | AQ96: =AQ95 -> 0 | AR96: =AR95 -> 0 | AT96: =IF(AS96=1,0,IF(AS96=0,0,1)) -> 0
AT97: =IF(AS97=1,0,IF(AS97=0,0,1)) -> 0
A98: 25 | B98: Direct Install Lighting | C98: Verified | Q98: 0 | AS98: =SUM(AE98:AR98) -> 0 | AT98: =IF(AS98=1,0,IF(AS98=0,0,1)) -> 0
B99: Adjustment to 2011 savings | C99: True-up | Q99: =Q98 -> 0 | AE99: =AE98 -> 0 | AF99: =AF98 -> 0 | AG99: =AG98 -> 0 | AH99: =AH98 -> 0 | AI99: =AI98 -> 0 | AJ99: =AJ98 -> 0 | AK99: =AK98 -> 0 | AL99: =AL98 -> 0 | AM99: =AM98 -> 0 | AN99: =AN98 -> 0 | AO99: =AO98 -> 0 | AP99: =AP98 -> 0 | AQ99: =AQ98 -> 0 | AR99: =AR98 -> 0 | AT99: =IF(AS99=1,0,IF(AS99=0,0,1)) -> 0
AH100: =AG101+AH101 -> 0.803183888 | AT100: =IF(AS100=1,0,IF(AS100=0,0,1)) -> 0
B101: Pre-2011 Programs completed in 2011 | AG101: 0.4445 | AH101: 0.358683888 | AS101: =1-AF102 -> 0.7998 | AT101: =IF(AS101=1,0,IF(AS101=0,0,1)) -> 1
A102: 26 | B102: Electricity Retrofit Incentive Program | C102: Verified | D102: 79337.02 | E102: 79337.02 | F102: 79337.02 | G102: 79337.02 | H102: 79337.02 | I102: 79337.02 | J102: 79337.02 | K102: 79337.02 | L102: 79337.02 | M102: 79337.02 | N102: 79337.02 | O102: 79337.02 | P102: 79337.02 | R102: 12.423 | S102: 12.423 | T102: 12.423 | U102: 12.423 | V102: 12.423 | W102: 12.423 | X102: 12.423 | Y102: 12.423 | Z102: 12.423 | AA102: 12.423 | AB102: 12.423 | AC102: 12.423 | AD102: 12.423 | AF102: 0.2002 | AG102: =$AS$101/$AH$100*AG101 -> 0.4426272804 | AH102: =$AS$101/$AH$100*AH101 -> 0.3571727196 | AS102: =SUM(AE102:AR102) -> 1 | AT102: =IF(AS102=1,0,IF(AS102=0,0,1)) -> 0
B103: Adjustment to 2011 savings | C103: True-up | Q103: =Q102 -> 0 | AE103: =AE102 -> 0 | AF103: =AF102 -> 0.2002 | AG103: =AG102 -> 0.4426272804 | AH103: =AH102 -> 0.3571727196 | AI103: =AI102 -> 0 | AJ103: =AJ102 -> 0 | AK103: =AK102 -> 0 | AL103: =AL102 -> 0 | AM103: =AM102 -> 0 | AN103: =AN102 -> 0 | AO103: =AO102 -> 0 | AP103: =AP102 -> 0 | AQ103: =AQ102 -> 0 | AR103: =AR102 -> 0 | AT103: =IF(AS103=1,0,IF(AS103=0,0,1)) -> 0
AT104: =IF(AS104=1,0,IF(AS104=0,0,1)) -> 0
A105: 27 | B105: High Performance New Construction | C105: Verified | D105: 331043.197 | E105: 331043.197 | F105: 331043.197 | G105: 331043.197 | H105: 331043.197 | I105: 331043.197 | J105: 331043.197 | K105: 331043.197 | L105: 331043.197 | M105: 331043.197 | N105: 331043.197 | O105: 331043.197 | P105: 331043.197 | R105: 64.455 | S105: 64.455 | T105: 64.455 | U105: 64.455 | V105: 64.455 | W105: 64.455 | X105: 64.455 | Y105: 64.455 | Z105: 64.455 | AA105: 64.455 | AB105: 64.455 | AC105: 64.455 | AD105: 64.455 | AF105: 0.2002 | AG105: =AG102 -> 0.4426272804 | AH105: =AH102 -> 0.3571727196 | AS105: =SUM(AE105:AR105) -> 1 | AT105: =IF(AS105=1,0,IF(AS105=0,0,1)) -> 0
B106: Adjustment to 2011 savings | C106: True-up | D106: 444616.067 | E106: 444616.067 | F106: 444616.067 | G106: 444616.067 | H106: 444616.067 | I106: 444616.067 | J106: 444616.067 | K106: 444616.067 | L106: 444616.067 | M106: 444616.067 | N106: 444616.067 | O106: 444616.067 | P106: 444616.067 | R106: 86.569 | S106: 86.569 | T106: 86.569 | U106: 86.569 | V106: 86.569 | W106: 86.569 | X106: 86.569 | Y106: 86.569 | Z106: 86.569 | AA106: 86.569 | AB106: 86.569 | AC106: 86.569 | AD106: 86.569 | AE106: =AE105 -> 0 | AF106: =AF105 -> 0.2002 | AG106: =AG105 -> 0.4426272804 | AH106: =AH105 -> 0.3571727196 | AI106: =AI105 -> 0 | AJ106: =AJ105 -> 0 | AK106: =AK105 -> 0 | AL106: =AL105 -> 0 | AM106: =AM105 -> 0 | AN106: =AN105 -> 0 | AO106: =AO105 -> 0 | AP106: =AP105 -> 0 | AQ106: =AQ105 -> 0 | AR106: =AR105 -> 0 | AT106: =IF(AS106=1,0,IF(AS106=0,0,1)) -> 0
AT107: =IF(AS107=1,0,IF(AS107=0,0,1)) -> 0
A108: 28 | B108: Toronto Comprehensive | C108: Verified | Q108: 0 | AS108: =SUM(AE108:AR108) -> 0 | AT108: =IF(AS108=1,0,IF(AS108=0,0,1)) -> 0
B109: Adjustment to 2011 savings | C109: True-up | Q109: =Q108 -> 0 | AE109: =AE108 -> 0 | AF109: =AF108 -> 0 | AG109: =AG108 -> 0 | AH109: =AH108 -> 0 | AI109: =AI108 -> 0 | AJ109: =AJ108 -> 0 | AK109: =AK108 -> 0 | AL109: =AL108 -> 0 | AM109: =AM108 -> 0 | AN109: =AN108 -> 0 | AO109: =AO108 -> 0 | AP109: =AP108 -> 0 | AQ109: =AQ108 -> 0 | AR109: =AR108 -> 0 | AT109: =IF(AS109=1,0,IF(AS109=0,0,1)) -> 0
AT110: =IF(AS110=1,0,IF(AS110=0,0,1)) -> 0
A111: 29 | B111: Multifamily Energy Efficiency Rebates | C111: Verified | Q111: 0 | AS111: =SUM(AE111:AR111) -> 0 | AT111: =IF(AS111=1,0,IF(AS111=0,0,1)) -> 0
B112: Adjustment to 2011 savings | C112: True-up | Q112: =Q111 -> 0 | AE112: =AE111 -> 0 | AF112: =AF111 -> 0 | AG112: =AG111 -> 0 | AH112: =AH111 -> 0 | AI112: =AI111 -> 0 | AJ112: =AJ111 -> 0 | AK112: =AK111 -> 0 | AL112: =AL111 -> 0 | AM112: =AM111 -> 0 | AN112: =AN111 -> 0 | AO112: =AO111 -> 0 | AP112: =AP111 -> 0 | AQ112: =AQ111 -> 0 | AR112: =AR111 -> 0 | AT112: =IF(AS112=1,0,IF(AS112=0,0,1)) -> 0
AT113: =IF(AS113=1,0,IF(AS113=0,0,1)) -> 0
A114: 30 | B114: LDC Custom Programs | C114: Verified | Q114: 0 | AS114: =SUM(AE114:AR114) -> 0 | AT114: =IF(AS114=1,0,IF(AS114=0,0,1)) -> 0
B115: Adjustment to 2011 savings | C115: True-up | Q115: =Q114 -> 0 | AE115: =AE114 -> 0 | AF115: =AF114 -> 0 | AG115: =AG114 -> 0 | AH115: =AH114 -> 0 | AI115: =AI114 -> 0 | AJ115: =AJ114 -> 0 | AK115: =AK114 -> 0 | AL115: =AL114 -> 0 | AM115: =AM114 -> 0 | AN115: =AN114 -> 0 | AO115: =AO114 -> 0 | AP115: =AP114 -> 0 | AQ115: =AQ114 -> 0 | AR115: =AR114 -> 0 | AT115: =IF(AS115=1,0,IF(AS115=0,0,1)) -> 0
AT116: =IF(AS116=1,0,IF(AS116=0,0,1)) -> 0
B117: Other | AT117: =IF(AS117=1,0,IF(AS117=0,0,1)) -> 0
A118: 31 | B118: Program Enabled Savings | C118: Verified | Q118: 0 | AS118: =SUM(AE118:AR118) -> 0 | AT118: =IF(AS118=1,0,IF(AS118=0,0,1)) -> 0
B119: Adjustment to 2011 savings | C119: True-up | Q119: =Q118 -> 0 | AE119: =AE118 -> 0 | AF119: =AF118 -> 0 | AG119: =AG118 -> 0 | AH119: =AH118 -> 0 | AI119: =AI118 -> 0 | AJ119: =AJ118 -> 0 | AK119: =AK118 -> 0 | AL119: =AL118 -> 0 | AM119: =AM118 -> 0 | AN119: =AN118 -> 0 | AO119: =AO118 -> 0 | AP119: =AP118 -> 0 | AQ119: =AQ118 -> 0 | AR119: =AR118 -> 0 | AT119: =IF(AS119=1,0,IF(AS119=0,0,1)) -> 0
AT120: =IF(AS120=1,0,IF(AS120=0,0,1)) -> 0
A121: 32 | B121: Time of Use Savings | C121: Verified | Q121: 0 | AS121: =SUM(AE121:AR121) -> 0 | AT121: =IF(AS121=1,0,IF(AS121=0,0,1)) -> 0
B122: Adjustment to 2011 savings | C122: True-up | Q122: =Q121 -> 0 | AE122: =AE121 -> 0 | AF122: =AF121 -> 0 | AG122: =AG121 -> 0 | AH122: =AH121 -> 0 | AI122: =AI121 -> 0 | AJ122: =AJ121 -> 0 | AK122: =AK121 -> 0 | AL122: =AL121 -> 0 | AM122: =AM121 -> 0 | AN122: =AN121 -> 0 | AO122: =AO121 -> 0 | AP122: =AP121 -> 0 | AQ122: =AQ121 -> 0 | AR122: =AR121 -> 0 | AT122: =IF(AS122=1,0,IF(AS122=0,0,1)) -> 0
AT123: =IF(AS123=1,0,IF(AS123=0,0,1)) -> 0
A124: 33 | B124: LDC Pilots | C124: Verified | Q124: 12 | AS124: =SUM(AE124:AR124) -> 0 | AT124: =IF(AS124=1,0,IF(AS124=0,0,1)) -> 0
B125: Adjustment to 2011 savings | C125: True-up | Q125: =Q124 -> 12 | AE125: =AE124 -> 0 | AF125: =AF124 -> 0 | AG125: =AG124 -> 0 | AH125: =AH124 -> 0 | AI125: =AI124 -> 0 | AJ125: =AJ124 -> 0 | AK125: =AK124 -> 0 | AL125: =AL124 -> 0 | AM125: =AM124 -> 0 | AN125: =AN124 -> 0 | AO125: =AO124 -> 0 | AP125: =AP124 -> 0 | AQ125: =AQ124 -> 0 | AR125: =AR124 -> 0 | AT125: =IF(AS125=1,0,IF(AS125=0,0,1)) -> 0
AT126: =IF(AS126=1,0,IF(AS126=0,0,1)) -> 0
B127: Actual CDM Savings in 2011 | D127: =SUM(D22:D125) -> 3637042.524 | R127: =SUM(R22:R125) -> 769.457 | AE127: =IF(AE21="kWh",SUMPRODUCT(D22:D125,AE22:AE125)) -> 515226.788 | AF127: =IF(AF21="kWh",SUMPRODUCT(D22:D125,AF22:AF125)) -> 836443.1787 | AG127: =IF(AG21="kW",SUMPRODUCT(Q22:Q125,R22:R125,AG22:AG125),SUMPRODUCT(D22:D125,AG22:AG125)) -> 1288421.554 | AH127: =IF(AH21="kW",SUMPRODUCT(Q22:Q125,R22:R125,AH22:AH125),SUMPRODUCT(D22:D125,AH22:AH125)) -> 996951.0033 | AI127: =IF(AI21="kW",SUMPRODUCT(Q22:Q125,R22:R125,AI22:AI125),SUMPRODUCT(D22:D125,AI22:AI125)) -> 0 | AJ127: =IF(AJ21="kW",SUMPRODUCT(Q22:Q125,R22:R125,AJ22:AJ125),SUMPRODUCT(D22:D125,AJ22:AJ125)) -> 0 | AK127: =IF(AK21="kW",SUMPRODUCT(Q22:Q125,R22:R125,AK22:AK125),SUMPRODUCT(D22:D125,AK22:AK125)) -> 0 | AL127: =IF(AL21="kW",SUMPRODUCT(Q22:Q125,R22:R125,AL22:AL125),SUMPRODUCT(D22:D125,AL22:AL125)) -> 0 | AM127: =IF(AM21="kW",SUMPRODUCT(Q22:Q125,R22:R125,AM22:AM125),SUMPRODUCT(D22:D125,AM22:AM125)) -> 0 | AN127: =IF(AN21="kW",SUMPRODUCT(Q22:Q125,R22:R125,AN22:AN125),SUMPRODUCT(D22:D125,AN22:AN125)) -> 0 | AO127: =IF(AO21="kW",SUMPRODUCT(Q22:Q125,R22:R125,AO22:AO125),SUMPRODUCT(D22:D125,AO22:AO125)) -> 0 | AP127: =IF(AP21="kW",SUMPRODUCT(Q22:Q125,R22:R125,AP22:AP125),SUMPRODUCT(D22:D125,AP22:AP125)) -> 0 | AQ127: =IF(AQ21="kW",SUMPRODUCT(Q22:Q125,R22:R125,AQ22:AQ125),SUMPRODUCT(D22:D125,AQ22:AQ125)) -> 0 | AR127: =IF(AR21="kW",SUMPRODUCT(Q22:Q125,R22:R125,AR22:AR125),SUMPRODUCT(D22:D125,AR22:AR125)) -> 0 | AT127: =IF(AS127=1,0,IF(AS127=0,0,1)) -> 0
B128: Forecast CDM Savings in 2011 | AE128: 0 | AF128: 0 | AG128: 0 | AH128: 0 | AI128: 0 | AJ128: 0 | AK128: 0 | AL128: 0 | AM128: 0 | AN128: 0 | AO128: 0 | AP128: 0 | AQ128: 0 | AR128: 0 | AT128: =IF(AS128=1,0,IF(AS128=0,0,1)) -> 0
AT129: =IF(AS129=1,0,IF(AS129=0,0,1)) -> 0
B130: Distribution Rate in 2011 | AE130: 0 | AF130: 0 | AG130: 0 | AH130: 0 | AI130: 0 | AJ130: 0 | AK130: 0 | AL130: 0 | AM130: 0 | AN130: 0 | AO130: 0 | AP130: 0 | AQ130: 0 | AR130: 0 | AT130: =IF(AS130=1,0,IF(AS130=0,0,1)) -> 0
B131: Lost Revenue in 2011 from 2011 programs | AE131: =AE127*AE130 -> 0 | AF131: =AF127*AF130 -> 0 | AG131: =AG127*AG130 -> 0 | AH131: =AH127*AH130 -> 0 | AI131: =AI127*AI130 -> 0 | AJ131: =AJ127*AJ130 -> 0 | AK131: =AK127*AK130 -> 0 | AL131: =AL127*AL130 -> 0 | AM131: =AM127*AM130 -> 0 | AN131: =AN127*AN130 -> 0 | AO131: =AO127*AO130 -> 0 | AP131: =AP127*AP130 -> 0 | AQ131: =AQ127*AQ130 -> 0 | AR131: =AR127*AR130 -> 0 | AS131: =SUM(AE131:AR131) -> 0 | AT131: =IF(AS131=1,0,IF(AS131=0,0,1)) -> 0
B132: Forecast Lost Revenues in 2011 | AE132: =AE128*AE130 -> 0 | AF132: =AF128*AF130 -> 0 | AG132: =AG128*AG130 -> 0 | AH132: =AH128*AH130 -> 0 | AI132: =AI128*AI130 -> 0 | AJ132: =AJ128*AJ130 -> 0 | AK132: =AK128*AK130 -> 0 | AL132: =AL128*AL130 -> 0 | AM132: =AM128*AM130 -> 0 | AN132: =AN128*AN130 -> 0 | AO132: =AO128*AO130 -> 0 | AP132: =AP128*AP130 -> 0 | AQ132: =AQ128*AQ130 -> 0 | AR132: =AR128*AR130 -> 0 | AS132: =SUM(AE132:AR132) -> 0 | AT132: =IF(AS132=1,0,IF(AS132=0,0,1)) -> 0
B133: LRAMVA in 2011 | AS133: =AS131-AS132 -> 0 | AT133: =IF(AS133=1,0,IF(AS133=0,0,1)) -> 0
AT134: =IF(AS134=1,0,IF(AS134=0,0,1)) -> 0
B135: 2011 Savings Persisting in 2012 | AE135: =SUMPRODUCT(E22:E125,AE22:AE125) -> 515226.788 | AF135: =SUMPRODUCT(E22:E125,AF22:AF125) -> 836443.1787 | AG135: =IF(AG21="kW",SUMPRODUCT(Q22:Q125,S22:S125,AG22:AG125),SUMPRODUCT(E22:E125,AG22:AG125)) -> 1288421.554 | AH135: =IF(AH21="kW",SUMPRODUCT(Q22:Q125,S22:S125,AH22:AH125),SUMPRODUCT(E22:E125,AH22:AH125)) -> 996951.0033 | AI135: =IF(AI21="kW",SUMPRODUCT(Q22:Q125,S22:S125,AI22:AI125),SUMPRODUCT(E22:E125,AI22:AI125)) -> 0 | AJ135: =IF(AJ21="kW",SUMPRODUCT(Q22:Q125,S22:S125,AJ22:AJ125),SUMPRODUCT(E22:E125, AJ22:AJ125)) -> 0 | AK135: =IF(AK21="kW",SUMPRODUCT(Q22:Q125,S22:S125,AK22:AK125),SUMPRODUCT(E22:E125,AK22:AK125)) -> 0 | AL135: =IF(AL21="kW",SUMPRODUCT(Q22:Q125,S22:S125,AL22:AL125),SUMPRODUCT(E22:E125,AL22:AL125)) -> 0 | AM135: =IF(AM21="kW",SUMPRODUCT(Q22:Q125,S22:S125,AM22:AM125),SUMPRODUCT(E22:E125,AM22:AM125)) -> 0 | AN135: =IF(AN21="kW",SUMPRODUCT(Q22:Q125,S22:S125,AN22:AN125),SUMPRODUCT(E22:E125,AN22:AN125)) -> 0 | AO135: =IF(AO21="kW",SUMPRODUCT(Q22:Q125,S22:S125,AO22:AO125),SUMPRODUCT(E22:E125,AO22:AO125)) -> 0 | AP135: =IF(AP21="kW",SUMPRODUCT(Q22:Q125,S22:S125,AP22:AP125),SUMPRODUCT(E22:E125,AP22:AP125)) -> 0 | AQ135: =IF(AQ21="kW",SUMPRODUCT(Q22:Q125,S22:S125,AQ22:AQ125),SUMPRODUCT(E22:E125,AQ22:AQ125)) -> 0 | AR135: =IF(AR21="kW",SUMPRODUCT(Q22:Q125,S22:S125,AR22:AR125),SUMPRODUCT(E22:E125,AR22:AR125)) -> 0 | AT135: =IF(AS135=1,0,IF(AS135=0,0,1)) -> 0
B136: 2011 Savings Persisting in 2013 | AE136: =SUMPRODUCT(F22:F125,AE22:AE125) -> 515226.788 | AF136: =SUMPRODUCT(F22:F125,AF22:AF125) -> 835864.382 | AG136: =IF(AG21="kW",SUMPRODUCT(Q22:Q125,T22:T125,AG22:AG125),SUMPRODUCT(F22:F125,AG22:AG125)) -> 1288416.145 | AH136: =IF(AH21="kW",SUMPRODUCT(Q22:Q125,T22:T125,AH22:AH125),SUMPRODUCT(F22:F125,AH22:AH125)) -> 996951.0033 | AI136: =IF(AI21="kW",SUMPRODUCT(Q22:Q125,T22:T125,AI22:AI125),SUMPRODUCT(F22:F125, AI22:AI125)) -> 0 | AJ136: =IF(AJ21="kW",SUMPRODUCT(Q22:Q125,T22:T125,AJ22:AJ125),SUMPRODUCT(F22:F125, AJ22:AJ125)) -> 0 | AK136: =IF(AK21="kW",SUMPRODUCT(Q22:Q125,T22:T125,AK22:AK125),SUMPRODUCT(F22:F125,AK22:AK125)) -> 0 | AL136: =IF(AL21="kW",SUMPRODUCT(Q22:Q125,T22:T125,AL22:AL125),SUMPRODUCT(F22:F125,AL22:AL125)) -> 0 | AM136: =IF(AM21="kW",SUMPRODUCT(Q22:Q125,T22:T125,AM22:AM125),SUMPRODUCT(F22:F125,AM22:AM125)) -> 0 | AN136: =IF(AN21="kW",SUMPRODUCT(Q22:Q125,T22:T125,AN22:AN125),SUMPRODUCT(F22:F125,AN22:AN125)) -> 0 | AO136: =IF(AO21="kW",SUMPRODUCT(Q22:Q125,T22:T125,AO22:AO125),SUMPRODUCT(F22:F125,AO22:AO125)) -> 0 | AP136: =IF(AP21="kW",SUMPRODUCT(Q22:Q125,T22:T125,AP22:AP125),SUMPRODUCT(F22:F125,AP22:AP125)) -> 0 | AQ136: =IF(AQ21="kW",SUMPRODUCT(Q22:Q125,T22:T125,AQ22:AQ125),SUMPRODUCT(F22:F125,AQ22:AQ125)) -> 0 | AR136: =IF(AR21="kW",SUMPRODUCT(Q22:Q125,T22:T125,AR22:AR125),SUMPRODUCT(F22:F125,AR22:AR125)) -> 0 | AT136: =IF(AS136=1,0,IF(AS136=0,0,1)) -> 0
B137: 2011 Savings Persisting in 2014 | AE137: =SUMPRODUCT(G22:G125,AE22:AE125) -> 513723.365 | AF137: =SUMPRODUCT(G22:G125,AF22:AF125) -> 779630.2005 | AG137: =IF(AG21="kW",SUMPRODUCT(Q22:Q125,U22:U125,AG22:AG125),SUMPRODUCT(G22:G125,AG22:AG125)) -> 1287502.617 | AH137: =IF(AH21="kW",SUMPRODUCT(Q22:Q125,U22:U125,AH22:AH125),SUMPRODUCT(G22:G125,AH22:AH125)) -> 996636.6028 | AI137: =IF(AI21="kW",SUMPRODUCT(Q22:Q125,U22:U125,AI22:AI125),SUMPRODUCT(G22:G125, AI22:AI125)) -> 0 | AJ137: =IF(AJ21="kW",SUMPRODUCT(Q22:Q125,U22:U125,AJ22:AJ125),SUMPRODUCT(G22:G125, AJ22:AJ125)) -> 0 | AK137: =IF(AK21="kW",SUMPRODUCT(Q22:Q125,U22:U125,AK22:AK125),SUMPRODUCT(G22:G125,AK22:AK125)) -> 0 | AL137: =IF(AL21="kW",SUMPRODUCT(Q22:Q125,U22:U125,AL22:AL125),SUMPRODUCT(G22:G125,AL22:AL125)) -> 0 | AM137: =IF(AM21="kW",SUMPRODUCT(Q22:Q125,U22:U125,AM22:AM125),SUMPRODUCT(G22:G125,AM22:AM125)) -> 0 | AN137: =IF(AN21="kW",SUMPRODUCT(Q22:Q125,U22:U125,AN22:AN125),SUMPRODUCT(G22:G125,AN22:AN125)) -> 0 | AO137: =IF(AO21="kW",SUMPRODUCT(Q22:Q125,U22:U125,AO22:AO125),SUMPRODUCT(G22:G125,AO22:AO125)) -> 0 | AP137: =IF(AP21="kW",SUMPRODUCT(Q22:Q125,U22:U125,AP22:AP125),SUMPRODUCT(G22:G125,AP22:AP125)) -> 0 | AQ137: =IF(AQ21="kW",SUMPRODUCT(Q22:Q125,U22:U125,AQ22:AQ125),SUMPRODUCT(G22:G125,AQ22:AQ125)) -> 0 | AR137: =IF(AR21="kW",SUMPRODUCT(Q22:Q125,U22:U125,AR22:AR125),SUMPRODUCT(G22:G125,AR22:AR125)) -> 0 | AT137: =IF(AS137=1,0,IF(AS137=0,0,1)) -> 0
B138: 2011 Savings Persisting in 2015 | AE138: =SUMPRODUCT(H22:H125,AE22:AE125) -> 475421.658 | AF138: =SUMPRODUCT(H22:H125,AF22:AF125) -> 779630.2005 | AG138: =IF(AG21="kW",SUMPRODUCT(Q22:Q125,V22:V125,AG22:AG125),SUMPRODUCT(H22:H125,AG22:AG125)) -> 1287502.617 | AH138: =IF(AH21="kW",SUMPRODUCT(Q22:Q125,V22:V125,AH22:AH125),SUMPRODUCT(H22:H125,AH22:AH125)) -> 996636.6028 | AI138: =IF(AI21="kW",SUMPRODUCT(Q22:Q125,V22:V125,AI22:AI125),SUMPRODUCT(H22:H125, AI22:AI125)) -> 0 | AJ138: =IF(AJ21="kW",SUMPRODUCT(Q22:Q125,V22:V125,AJ22:AJ125),SUMPRODUCT(H22:H125, AJ22:AJ125)) -> 0 | AK138: =IF(AK21="kW",SUMPRODUCT(Q22:Q125,V22:V125,AK22:AK125),SUMPRODUCT(H22:H125,AK22:AK125)) -> 0 | AL138: =IF(AL21="kW",SUMPRODUCT(Q22:Q125,V22:V125,AL22:AL125),SUMPRODUCT(H22:H125,AL22:AL125)) -> 0 | AM138: =IF(AM21="kW",SUMPRODUCT(Q22:Q125,V22:V125,AM22:AM125),SUMPRODUCT(H22:H125,AM22:AM125)) -> 0 | AN138: =IF(AN21="kW",SUMPRODUCT(Q22:Q125,V22:V125,AN22:AN125),SUMPRODUCT(H22:H125,AN22:AN125)) -> 0 | AO138: =IF(AO21="kW",SUMPRODUCT(Q22:Q125,V22:V125,AO22:AO125),SUMPRODUCT(H22:H125,AO22:AO125)) -> 0 | AP138: =IF(AP21="kW",SUMPRODUCT(Q22:Q125,V22:V125,AP22:AP125),SUMPRODUCT(H22:H125,AP22:AP125)) -> 0 | AQ138: =IF(AQ21="kW",SUMPRODUCT(Q22:Q125,V22:V125,AQ22:AQ125),SUMPRODUCT(H22:H125,AQ22:AQ125)) -> 0 | AR138: =IF(AR21="kW",SUMPRODUCT(Q22:Q125,V22:V125,AR22:AR125),SUMPRODUCT(H22:H125,AR22:AR125)) -> 0 | AT138: =IF(AS138=1,0,IF(AS138=0,0,1)) -> 0
B139: 2011 Savings Persisting in 2016 | AE139: =SUMPRODUCT(I22:I125,AE22:AE125) -> 398799.391 | AF139: =SUMPRODUCT(I22:I125,AF22:AF125) -> 779630.2005 | AG139: =IF(AG21="kW",SUMPRODUCT(Q22:Q125,W22:W125,AG22:AG125),SUMPRODUCT(I22:I125,AG22:AG125)) -> 1237150.108 | AH139: =IF(AH21="kW",SUMPRODUCT(Q22:Q125,W22:W125,AH22:AH125),SUMPRODUCT(I22:I125,AH22:AH125)) -> 996636.6028 | AI139: =IF(AI21="kW",SUMPRODUCT(Q22:Q125,W22:W125,AI22:AI125),SUMPRODUCT(I22:I125, AI22:AI125)) -> 0 | AJ139: =IF(AJ21="kW",SUMPRODUCT(Q22:Q125,W22:W125,AJ22:AJ125),SUMPRODUCT(I22:I125, AJ22:AJ125)) -> 0 | AK139: =IF(AK21="kW",SUMPRODUCT(Q22:Q125,W22:W125,AK22:AK125),SUMPRODUCT(I22:I125,AK22:AK125)) -> 0 | AL139: =IF(AL21="kW",SUMPRODUCT(Q22:Q125,W22:W125,AL22:AL125),SUMPRODUCT(I22:I125,AL22:AL125)) -> 0 | AM139: =IF(AM21="kW",SUMPRODUCT(Q22:Q125,W22:W125,AM22:AM125),SUMPRODUCT(I22:I125,AM22:AM125)) -> 0 | AN139: =IF(AN21="kW",SUMPRODUCT(Q22:Q125,W22:W125,AN22:AN125),SUMPRODUCT(I22:I125,AN22:AN125)) -> 0 | AO139: =IF(AO21="kW",SUMPRODUCT(Q22:Q125,W22:W125,AO22:AO125),SUMPRODUCT(I22:I125,AO22:AO125)) -> 0 | AP139: =IF(AP21="kW",SUMPRODUCT(Q22:Q125,W22:W125,AP22:AP125),SUMPRODUCT(I22:I125,AP22:AP125)) -> 0 | AQ139: =IF(AQ21="kW",SUMPRODUCT(Q22:Q125,W22:W125,AQ22:AQ125),SUMPRODUCT(I22:I125,AQ22:AQ125)) -> 0 | AR139: =IF(AR21="kW",SUMPRODUCT(Q22:Q125,W22:W125,AR22:AR125),SUMPRODUCT(I22:I125,AR22:AR125)) -> 0 | AT139: =IF(AS139=1,0,IF(AS139=0,0,1)) -> 0
B140: 2011 Savings Persisting in 2017 | AE140: =SUMPRODUCT(J22:J125,AE22:AE125) -> 345411.517 | AF140: =SUMPRODUCT(J22:J125,AF22:AF125) -> 627482.4983 | AG140: =IF(AG21="kW",SUMPRODUCT(Q22:Q125,X22:X125,AG22:AG125),SUMPRODUCT(J22:J125,AG22:AG125)) -> 1231742.286 | AH140: =IF(AH21="kW",SUMPRODUCT(Q22:Q125,X22:X125,AH22:AH125),SUMPRODUCT(J22:J125,AH22:AH125)) -> 993406.5909 | AI140: =IF(AI21="kW",SUMPRODUCT(Q22:Q125,X22:X125,AI22:AI125),SUMPRODUCT(J22:J125, AI22:AI125)) -> 0 | AJ140: =IF(AJ21="kW",SUMPRODUCT(Q22:Q125,X22:X125,AJ22:AJ125),SUMPRODUCT(J22:J125, AJ22:AJ125)) -> 0 | AK140: =IF(AK21="kW",SUMPRODUCT(Q22:Q125,X22:X125,AK22:AK125),SUMPRODUCT(J22:J125,AK22:AK125)) -> 0 | AL140: =IF(AL21="kW",SUMPRODUCT(Q22:Q125,X22:X125,AL22:AL125),SUMPRODUCT(J22:J125,AL22:AL125)) -> 0 | AM140: =IF(AM21="kW",SUMPRODUCT(Q22:Q125,X22:X125,AM22:AM125),SUMPRODUCT(J22:J125,AM22:AM125)) -> 0 | AN140: =IF(AN21="kW",SUMPRODUCT(Q22:Q125,X22:X125,AN22:AN125),SUMPRODUCT(J22:J125,AN22:AN125)) -> 0 | AO140: =IF(AO21="kW",SUMPRODUCT(Q22:Q125,X22:X125,AO22:AO125),SUMPRODUCT(J22:J125,AO22:AO125)) -> 0 | AP140: =IF(AP21="kW",SUMPRODUCT(Q22:Q125,X22:X125,AP22:AP125),SUMPRODUCT(J22:J125,AP22:AP125)) -> 0 | AQ140: =IF(AQ21="kW",SUMPRODUCT(Q22:Q125,X22:X125,AQ22:AQ125),SUMPRODUCT(J22:J125,AQ22:AQ125)) -> 0 | AR140: =IF(AR21="kW",SUMPRODUCT(Q22:Q125,X22:X125,AR22:AR125),SUMPRODUCT(J22:J125,AR22:AR125)) -> 0 | AT140: =IF(AS140=1,0,IF(AS140=0,0,1)) -> 0
B141: 2011 Savings Persisting in 2018 | AE141: =SUMPRODUCT(K22:K125,AE22:AE125) -> 344683.686 | AF141: =SUMPRODUCT(K22:K125,AF22:AF125) -> 625755.9612 | AG141: =IF(AG21="kW",SUMPRODUCT(Q22:Q125,Y22:Y125,AG22:AG125),SUMPRODUCT(K22:K125,AG22:AG125)) -> 1231726.15 | AH141: =IF(AH21="kW",SUMPRODUCT(Q22:Q125,Y22:Y125,AH22:AH125),SUMPRODUCT(K22:K125,AH22:AH125)) -> 993406.5909 | AI141: =IF(AI21="kW",SUMPRODUCT(Q22:Q125,Y22:Y125,AI22:AI125),SUMPRODUCT(K22:K125, AI22:AI125)) -> 0 | AJ141: =IF(AJ21="kW",SUMPRODUCT(Q22:Q125,Y22:Y125,AJ22:AJ125),SUMPRODUCT(K22:K125, AJ22:AJ125)) -> 0 | AK141: =IF(AK21="kW",SUMPRODUCT(Q22:Q125,Y22:Y125,AK22:AK125),SUMPRODUCT(K22:K125,AK22:AK125)) -> 0 | AL141: =IF(AL21="kW",SUMPRODUCT(Q22:Q125,Y22:Y125,AL22:AL125),SUMPRODUCT(K22:K125,AL22:AL125)) -> 0 | AM141: =IF(AM21="kW",SUMPRODUCT(Q22:Q125,Y22:Y125,AM22:AM125),SUMPRODUCT(K22:K125,AM22:AM125)) -> 0 | AN141: =IF(AN21="kW",SUMPRODUCT(Q22:Q125,Y22:Y125,AN22:AN125),SUMPRODUCT(K22:K125,AN22:AN125)) -> 0 | AO141: =IF(AO21="kW",SUMPRODUCT(Q22:Q125,Y22:Y125,AO22:AO125),SUMPRODUCT(K22:K125,AO22:AO125)) -> 0 | AP141: =IF(AP21="kW",SUMPRODUCT(Q22:Q125,Y22:Y125,AP22:AP125),SUMPRODUCT(K22:K125,AP22:AP125)) -> 0 | AQ141: =IF(AQ21="kW",SUMPRODUCT(Q22:Q125,Y22:Y125,AQ22:AQ125),SUMPRODUCT(K22:K125,AQ22:AQ125)) -> 0 | AR141: =IF(AR21="kW",SUMPRODUCT(Q22:Q125,Y22:Y125,AR22:AR125),SUMPRODUCT(K22:K125,AR22:AR125)) -> 0 | AT141: =IF(AS141=1,0,IF(AS141=0,0,1)) -> 0
B142: 2011 Savings Persisting in 2019 | AE142: =SUMPRODUCT(L22:L125,AE22:AE125) -> 387745.312 | AF142: =SUMPRODUCT(L22:L125,AF22:AF125) -> 625755.9612 | AG142: =IF(AG21="kW",SUMPRODUCT(Q22:Q125,Z22:Z125,AG22:AG125),SUMPRODUCT(L22:L125,AG22:AG125)) -> 1231726.15 | AH142: =IF(AH21="kW",SUMPRODUCT(Q22:Q125,Z22:Z125,AH22:AH125),SUMPRODUCT(L22:L125,AH22:AH125)) -> 993406.5909 | AI142: =IF(AI21="kW",SUMPRODUCT(Q22:Q125,Z22:Z125,AI22:AI125),SUMPRODUCT(L22:L125, AI22:AI125)) -> 0 | AJ142: =IF(AJ21="kW",SUMPRODUCT(Q22:Q125,Z22:Z125,AJ22:AJ125),SUMPRODUCT(L22:L125, AJ22:AJ125)) -> 0 | AK142: =IF(AK21="kW",SUMPRODUCT(Q22:Q125,Z22:Z125,AK22:AK125),SUMPRODUCT(L22:L125,AK22:AK125)) -> 0 | AL142: =IF(AL21="kW",SUMPRODUCT(Q22:Q125,Z22:Z125,AL22:AL125),SUMPRODUCT(L22:L125,AL22:AL125)) -> 0 | AM142: =IF(AM21="kW",SUMPRODUCT(Q22:Q125,Z22:Z125,AM22:AM125),SUMPRODUCT(L22:L125,AM22:AM125)) -> 0 | AN142: =IF(AN21="kW",SUMPRODUCT(Q22:Q125,Z22:Z125,AN22:AN125),SUMPRODUCT(L22:L125,AN22:AN125)) -> 0 | AO142: =IF(AO21="kW",SUMPRODUCT(Q22:Q125,Z22:Z125,AO22:AO125),SUMPRODUCT(L22:L125,AO22:AO125)) -> 0 | AP142: =IF(AP21="kW",SUMPRODUCT(Q22:Q125,Z22:Z125,AP22:AP125),SUMPRODUCT(L22:L125,AP22:AP125)) -> 0 | AQ142: =IF(AQ21="kW",SUMPRODUCT(Q22:Q125,Z22:Z125,AQ22:AQ125),SUMPRODUCT(L22:L125,AQ22:AQ125)) -> 0 | AR142: =IF(AR21="kW",SUMPRODUCT(Q22:Q125,Z22:Z125,AR22:AR125),SUMPRODUCT(L22:L125,AR22:AR125)) -> 0 | AT142: =IF(AS142=1,0,IF(AS142=0,0,1)) -> 0
B143: 2011 Savings Persisting in 2020 | AE143: =SUMPRODUCT(M$22:M$125,AE$22:AE$125) -> 253815.292 | AF143: =SUMPRODUCT(M$22:M$125,AF$22:AF$125) -> 522180.4375 | AG143: =IF($AG$21="kW",SUMPRODUCT(Q$22:Q$125,AA$22:AA$125,AG$22:AG$125),SUMPRODUCT(M$22:M$125,AG$22:AG$125)) -> 1002728.386 | AH143: =IF($AH$21="kW",SUMPRODUCT($Q$22:$Q$125,$AA$22:$AA$125,$AH$22:$AH$125),SUMPRODUCT($M$22:$M$125, $AH$22:$AH$125)) -> 808619.6206 | AI143: =IF(AI21="kW",SUMPRODUCT(Q22:Q125,AA22:AA125,AI22:AI125),SUMPRODUCT(M22:M125, AI22:AI125)) -> 0 | AJ143: =IF(AJ21="kW",SUMPRODUCT(Q22:Q125,AA22:AA125,AJ22:AJ125),SUMPRODUCT(M22:M125, AJ22:AJ125)) -> 0 | AK143: =IF(AK21="kW",SUMPRODUCT(Q22:Q125,AA22:AA125, AK22:AK125),SUMPRODUCT(M22:M125,AK22:AK125)) -> 0 | AL143: =IF(AL21="kW",SUMPRODUCT(Q22:Q125,AA22:AA125, AL22:AL125),SUMPRODUCT(M22:M125,AL22:AL125)) -> 0 | AM143: =IF(AM21="kW",SUMPRODUCT(Q22:Q125,AA22:AA125, AM22:AM125),SUMPRODUCT(M22:M125,AM22:AM125)) -> 0 | AN143: =IF(AN21="kW",SUMPRODUCT(Q22:Q125,AA22:AA125, AN22:AN125),SUMPRODUCT(M22:M125,AN22:AN125)) -> 0 | AO143: =IF(AO21="kW",SUMPRODUCT(Q22:Q125,AA22:AA125, AO22:AO125),SUMPRODUCT(M22:M125,AO22:AO125)) -> 0 | AP143: =IF(AP21="kW",SUMPRODUCT(Q22:Q125,AA22:AA125, AP22:AP125),SUMPRODUCT(M22:M125,AP22:AP125)) -> 0 | AQ143: =IF(AQ21="kW",SUMPRODUCT(Q22:Q125,AA22:AA125, AQ22:AQ125),SUMPRODUCT(M22:M125,AQ22:AQ125)) -> 0 | AR143: =IF(AR21="kW",SUMPRODUCT(Q22:Q125,AA22:AA125, AR22:AR125),SUMPRODUCT(M22:M125,AR22:AR125)) -> 0 | AT143: =IF(AS143=1,0,IF(AS143=0,0,1)) -> 0
AE144: =SUMPRODUCT(N$22:N$125,AE$22:AE$125) -> 237879.7027 | AF144: =SUMPRODUCT(N$22:N$125,AF$22:AF$125) -> 487655.263 | AG144: =IF($AG$21="kW",SUMPRODUCT(Q$22:Q$125,AA$22:AA$125,AG$22:AG$125),SUMPRODUCT(N$22:N$125,AG$22:AG$125)) -> 926395.7979 | AH144: =IF($AH$21="kW",SUMPRODUCT($Q$22:$Q$125,$AA$22:$AA$125,$AH$22:$AH$125),SUMPRODUCT($N$22:$N$125, $AH$22:$AH$125)) -> 747023.9638 | AT144: =IF(AS144=1,0,IF(AS144=0,0,1)) -> 0
AE145: =SUMPRODUCT(O$22:O$125,AE$22:AE$125) -> 184720.35 | AF145: =SUMPRODUCT(O$22:O$125,AF$22:AF$125) -> 435867.5011 | AG145: =IF($AG$21="kW",SUMPRODUCT(Q$22:Q$125,AA$22:AA$125,AG$22:AG$125),SUMPRODUCT(O$22:O$125,AG$22:AG$125)) -> 811896.9159 | AH145: =IF($AH$21="kW",SUMPRODUCT($Q$22:$Q$125,$AA$22:$AA$125,$AH$22:$AH$125),SUMPRODUCT($O$22:$O$125, $AH$22:$AH$125)) -> 654630.4786 | AT145: =IF(AS145=1,0,IF(AS145=0,0,1)) -> 0
AE146: =SUMPRODUCT(P$22:P$125,AE$22:AE$125) -> 184720.35 | AF146: =SUMPRODUCT(P$22:P$125,AF$22:AF$125) -> 384079.7393 | AG146: =IF($AG$21="kW",SUMPRODUCT(Q$22:Q$125,AA$22:AA$125,AG$22:AG$125),SUMPRODUCT(P$22:P$125,AG$22:AG$125)) -> 697398.034 | AH146: =IF($AH$21="kW",SUMPRODUCT($Q$22:$Q$125,$AA$22:$AA$125,$AH$22:$AH$125),SUMPRODUCT($P$22:$P$125, $AH$22:$AH$125)) -> 562236.9934 | AT146: =IF(AS146=1,0,IF(AS146=0,0,1)) -> 0
B147: Note: LDC to make note of key assumptions included above | AT147: =IF(AS147=1,0,IF(AS147=0,0,1)) -> 0
AT148: =IF(AS148=1,0,IF(AS148=0,0,1)) -> 0
B149: Table 4-b. 2012 Lost Revenues Work Form | D149: Return to top | AT149: =IF(AS149=1,0,IF(AS149=0,0,1)) -> 0
B150: Program | C150: Results Status | D150: Net Energy Savings (kWh) | E150: Net Energy Savings Persistence (kWh) | Q150: Monthly Multiplier | R150: Net Demand Savings (kW) | S150: Net Peak Demand Savings Persistence (kW) | AE150: Rate Allocations for LRAMVA | AT150: =IF(AS150=1,0,IF(AS150=0,0,1)) -> 0
D151: 2012 | E151: 2013 | F151: 2014 | G151: 2015 | H151: 2016 | I151: 2017 | J151: 2018 | K151: 2019 | L151: 2020 | M151: 2021 | N151: 2022 | O151: 2023 | R151: 2012 | S151: 2013 | T151: 2014 | U151: 2015 | V151: 2016 | W151: 2017 | X151: 2018 | Y151: 2019 | Z151: 2020 | AA151: 2021 | AE151: Residential | AF151: GS<50 kW | AG151: GS 50 to 4,999 kW | AH151: Large Use | AI151: Street Lights | AJ151: Unmetered Scattered Load | AS151: Total | AT151: =IF(AS151=1,0,IF(AS151=0,0,1)) -> 1
B152: Consumer Program | AE152: kWh | AF152: kWh | AG152: kWh | AH152: kWh | AI152: kWh | AJ152: kWh | AK152: 0 | AL152: 0 | AM152: 0 | AN152: 0 | AO152: 0 | AP152: 0 | AQ152: 0 | AR152: kWh | AT152: =IF(AS152=1,0,IF(AS152=0,0,1)) -> 0
A153: 1 | B153: Appliance Retirement | C153: Verified | D153: 36436.022 | E153: 36436.022 | F153: 36436.022 | G153: 36436.022 | H153: 21883.402 | I153: 0 | J153: 0 | K153: 0 | L153: 0 | M153: 0 | N153: 0 | O153: 0 | R153: 5.104 | S153: 5.104 | T153: 5.104 | U153: 5.104 | V153: 2.877 | W153: 0 | X153: 0 | Y153: 0 | Z153: 0 | AA153: 0 | AB153: 0 | AC153: 0 | AD153: 0 | AE153: 1 | AS153: =SUM(AE153:AH153) -> 1 | AT153: =IF(AS153=1,0,IF(AS153=0,0,1)) -> 0
B154: Adjustment to 2012 savings | C154: True-up | AE154: =AE153 -> 1 | AF154: =AF153 -> 0 | AG154: =AG153 -> 0 | AH154: =AH153 -> 0 | AI154: =AI153 -> 0 | AJ154: =AJ153 -> 0 | AK154: =AK153 -> 0 | AL154: =AL153 -> 0 | AM154: =AM153 -> 0 | AN154: =AN153 -> 0 | AO154: =AO153 -> 0 | AP154: =AP153 -> 0 | AQ154: =AQ153 -> 0 | AR154: =AR153 -> 0 | AT154: =IF(AS154=1,0,IF(AS154=0,0,1)) -> 0
AT155: =IF(AS155=1,0,IF(AS155=0,0,1)) -> 0
A156: 2 | B156: Appliance Exchange | C156: Verified | D156: 16002.314 | E156: 16002.314 | F156: 16002.314 | G156: 15308.388 | H156: 0 | I156: 0 | J156: 0 | K156: 0 | L156: 0 | M156: 0 | N156: 0 | O156: 0 | R156: 9.361 | S156: 9.361 | T156: 9.361 | U156: 8.585 | V156: 0 | W156: 0 | X156: 0 | Y156: 0 | Z156: 0 | AA156: 0 | AB156: 0 | AC156: 0 | AD156: 0 | AE156: 1 | AS156: =SUM(AE156:AH156) -> 1 | AT156: =IF(AS156=1,0,IF(AS156=0,0,1)) -> 0
B157: Adjustment to 2012 savings | C157: True-up | AE157: =AE156 -> 1 | AF157: =AF156 -> 0 | AG157: =AG156 -> 0 | AH157: =AH156 -> 0 | AI157: =AI156 -> 0 | AJ157: =AJ156 -> 0 | AK157: =AK156 -> 0 | AL157: =AL156 -> 0 | AM157: =AM156 -> 0 | AN157: =AN156 -> 0 | AO157: =AO156 -> 0 | AP157: =AP156 -> 0 | AQ157: =AQ156 -> 0 | AR157: =AR156 -> 0 | AT157: =IF(AS157=1,0,IF(AS157=0,0,1)) -> 0
AT158: =IF(AS158=1,0,IF(AS158=0,0,1)) -> 0
A159: 3 | B159: HVAC Incentives | C159: Verified | D159: 95798.091 | E159: 95798.091 | F159: 95798.091 | G159: 95798.091 | H159: 95798.091 | I159: 95798.091 | J159: 95798.091 | K159: 95798.091 | L159: 95798.091 | M159: 95798.091 | N159: 95798.091 | O159: 95798.091 | R159: 52.904 | S159: 52.904 | T159: 52.904 | U159: 52.904 | V159: 52.904 | W159: 52.904 | X159: 52.904 | Y159: 52.904 | Z159: 52.904 | AA159: 52.904 | AB159: 52.904 | AC159: 52.904 | AD159: 52.904 | AE159: 1 | AS159: =SUM(AE159:AH159) -> 1 | AT159: =IF(AS159=1,0,IF(AS159=0,0,1)) -> 0
B160: Adjustment to 2012 savings | C160: True-up | D160: 3573.734 | E160: 3573.734 | F160: 3573.734 | G160: 3573.734 | H160: 3573.734 | I160: 3573.734 | J160: 3573.734 | K160: 3573.734 | L160: 3573.734 | M160: 3573.734 | N160: 3573.734 | O160: 3573.734 | R160: 1.765 | S160: 1.765 | T160: 1.765 | U160: 1.765 | V160: 1.765 | W160: 1.765 | X160: 1.765 | Y160: 1.765 | Z160: 1.765 | AA160: 1.765 | AB160: 1.765 | AC160: 1.765 | AD160: 1.765 | AE160: =AE159 -> 1 | AF160: =AF159 -> 0 | AG160: =AG159 -> 0 | AH160: =AH159 -> 0 | AI160: =AI159 -> 0 | AJ160: =AJ159 -> 0 | AK160: =AK159 -> 0 | AL160: =AL159 -> 0 | AM160: =AM159 -> 0 | AN160: =AN159 -> 0 | AO160: =AO159 -> 0 | AP160: =AP159 -> 0 | AQ160: =AQ159 -> 0 | AR160: =AR159 -> 0 | AT160: =IF(AS160=1,0,IF(AS160=0,0,1)) -> 0
AT161: =IF(AS161=1,0,IF(AS161=0,0,1)) -> 0
A162: 4 | B162: Conservation Instant Coupon Booklet | C162: Verified | D162: 7010.253 | E162: 7010.253 | F162: 7010.253 | G162: 7010.253 | H162: 6904.935 | I162: 6904.935 | J162: 3251.51 | K162: 3233.565 | L162: 3233.565 | M162: 3233.565 | N162: 3233.565 | O162: 3233.565 | R162: 1.155 | S162: 1.155 | T162: 1.155 | U162: 1.155 | V162: 1.15 | W162: 1.15 | X162: 0.981 | Y162: 0.979 | Z162: 0.979 | AA162: 0.979 | AB162: 0.979 | AC162: 0.979 | AD162: 0.979 | AE162: 1 | AS162: =SUM(AE162:AH162) -> 1 | AT162: =IF(AS162=1,0,IF(AS162=0,0,1)) -> 0
B163: Adjustment to 2012 savings | C163: True-up | AE163: =AE162 -> 1 | AF163: =AF162 -> 0 | AG163: =AG162 -> 0 | AH163: =AH162 -> 0 | AI163: =AI162 -> 0 | AJ163: =AJ162 -> 0 | AK163: =AK162 -> 0 | AL163: =AL162 -> 0 | AM163: =AM162 -> 0 | AN163: =AN162 -> 0 | AO163: =AO162 -> 0 | AP163: =AP162 -> 0 | AQ163: =AQ162 -> 0 | AR163: =AR162 -> 0 | AT163: =IF(AS163=1,0,IF(AS163=0,0,1)) -> 0
AT164: =IF(AS164=1,0,IF(AS164=0,0,1)) -> 0
A165: 5 | B165: Bi-Annual Retailer Event | C165: Verified | D165: 134276.979 | E165: 134276.979 | F165: 134276.979 | G165: 134276.979 | H165: 120706.462 | I165: 98151.595 | J165: 66949.454 | K165: 66810.288 | L165: 66810.288 | M165: 33934.542 | N165: 22975.96 | R165: 7.42 | S165: 7.42 | T165: 7.42 | U165: 7.42 | V165: 6.792 | W165: 5.748 | X165: 4.303 | Y165: 4.287 | Z165: 4.287 | AA165: 2.765 | AB165: 1.243 | AC165: -0.279 | AE165: 1 | AS165: =SUM(AE165:AH165) -> 1 | AT165: =IF(AS165=1,0,IF(AS165=0,0,1)) -> 0
B166: Adjustment to 2012 savings | C166: True-up | AE166: =AE165 -> 1 | AF166: =AF165 -> 0 | AG166: =AG165 -> 0 | AH166: =AH165 -> 0 | AI166: =AI165 -> 0 | AJ166: =AJ165 -> 0 | AK166: =AK165 -> 0 | AL166: =AL165 -> 0 | AM166: =AM165 -> 0 | AN166: =AN165 -> 0 | AO166: =AO165 -> 0 | AP166: =AP165 -> 0 | AQ166: =AQ165 -> 0 | AR166: =AR165 -> 0 | AT166: =IF(AS166=1,0,IF(AS166=0,0,1)) -> 0
AT167: =IF(AS167=1,0,IF(AS167=0,0,1)) -> 0
A168: 6 | B168: Retailer Co-op | C168: Verified | AS168: =SUM(AE168:AR168) -> 0 | AT168: =IF(AS168=1,0,IF(AS168=0,0,1)) -> 0
B169: Adjustment to 2012 savings | C169: True-up | AE169: =AE168 -> 0 | AF169: =AF168 -> 0 | AG169: =AG168 -> 0 | AH169: =AH168 -> 0 | AI169: =AI168 -> 0 | AJ169: =AJ168 -> 0 | AK169: =AK168 -> 0 | AL169: =AL168 -> 0 | AM169: =AM168 -> 0 | AN169: =AN168 -> 0 | AO169: =AO168 -> 0 | AP169: =AP168 -> 0 | AQ169: =AQ168 -> 0 | AR169: =AR168 -> 0 | AT169: =IF(AS169=1,0,IF(AS169=0,0,1)) -> 0
AT170: =IF(AS170=1,0,IF(AS170=0,0,1)) -> 0
A171: 7 | B171: Residential Demand Response | C171: Verified | AS171: =SUM(AE171:AR171) -> 0 | AT171: =IF(AS171=1,0,IF(AS171=0,0,1)) -> 0
B172: Adjustment to 2012 savings | C172: True-up | AE172: =AE171 -> 0 | AF172: =AF171 -> 0 | AG172: =AG171 -> 0 | AH172: =AH171 -> 0 | AI172: =AI171 -> 0 | AJ172: =AJ171 -> 0 | AK172: =AK171 -> 0 | AL172: =AL171 -> 0 | AM172: =AM171 -> 0 | AN172: =AN171 -> 0 | AO172: =AO171 -> 0 | AP172: =AP171 -> 0 | AQ172: =AQ171 -> 0 | AR172: =AR171 -> 0 | AT172: =IF(AS172=1,0,IF(AS172=0,0,1)) -> 0
AT173: =IF(AS173=1,0,IF(AS173=0,0,1)) -> 0
A174: 8 | B174: Residential Demand Response (IHD) | C174: Verified | AS174: =SUM(AE174:AR174) -> 0 | AT174: =IF(AS174=1,0,IF(AS174=0,0,1)) -> 0
B175: Adjustment to 2012 savings | C175: True-up | AE175: =AE174 -> 0 | AF175: =AF174 -> 0 | AG175: =AG174 -> 0 | AH175: =AH174 -> 0 | AI175: =AI174 -> 0 | AJ175: =AJ174 -> 0 | AK175: =AK174 -> 0 | AL175: =AL174 -> 0 | AM175: =AM174 -> 0 | AN175: =AN174 -> 0 | AO175: =AO174 -> 0 | AP175: =AP174 -> 0 | AQ175: =AQ174 -> 0 | AR175: =AR174 -> 0 | AT175: =IF(AS175=1,0,IF(AS175=0,0,1)) -> 0
AT176: =IF(AS176=1,0,IF(AS176=0,0,1)) -> 0
A177: 9 | B177: Residential New Construction | C177: Verified | AS177: =SUM(AE177:AR177) -> 0 | AT177: =IF(AS177=1,0,IF(AS177=0,0,1)) -> 0
B178: Adjustment to 2012 savings | C178: True-up | AE178: =AE177 -> 0 | AF178: =AF177 -> 0 | AG178: =AG177 -> 0 | AH178: =AH177 -> 0 | AI178: =AI177 -> 0 | AJ178: =AJ177 -> 0 | AK178: =AK177 -> 0 | AL178: =AL177 -> 0 | AM178: =AM177 -> 0 | AN178: =AN177 -> 0 | AO178: =AO177 -> 0 | AP178: =AP177 -> 0 | AQ178: =AQ177 -> 0 | AR178: =AR177 -> 0 | AT178: =IF(AS178=1,0,IF(AS178=0,0,1)) -> 0
AI179: =SUM(AG180:AI180) -> 0.914283068 | AT179: =IF(AS179=1,0,IF(AS179=0,0,1)) -> 0
B180: Business Program | AG180: 0.7372 | AH180: 0.167821154 | AI180: 0.009261914 | AS180: =1-AF182 -> 0.9255 | AT180: =IF(AS180=1,0,IF(AS180=0,0,1)) -> 1
A181: 10 | B181: Retrofit | C181: Verified | D181: 3121717.308 | E181: 3121717.308 | F181: 3030034.376 | G181: 2902846.009 | H181: 2902846.009 | I181: 2560211.716 | J181: 2552069.03 | K181: 2552069.03 | L181: 2487057.902 | M181: 2377254.783 | N181: 2297312.991 | O181: 2209905.868 | Q181: 12 | R181: 536.311 | S181: 536.311 | T181: 508.246 | U181: 469.781 | V181: 469.781 | W181: 364.956 | X181: 362.881 | Y181: 362.881 | Z181: 352.08 | AA181: 324.099 | AB181: 296.118 | AC181: 268.137 | AD181: 240.156 | AE181: 0 | AF181: 0.0745 | AG181: =AG180*($AS$180/$AI$179) -> 0.7462443787 | AH181: =AH180*($AS$180/$AI$179) -> 0.169880077 | AI181: =AI180*($AS$180/$AI$179) -> 0.0093755443 | AS181: =SUM(AE181:AI181) -> 1 | AT181: =IF(AS181=1,0,IF(AS181=0,0,1)) -> 0
B182: Adjustment to 2012 savings | C182: True-up | D182: 23308.799 | E182: 23308.799 | F182: 23308.799 | G182: 23308.799 | H182: 23308.799 | I182: 23308.799 | J182: 23308.799 | K182: 23308.799 | L182: 23308.799 | M182: 23308.799 | N182: 23308.799 | O182: 23308.799 | Q182: =Q181 -> 12 | R182: 13.515 | S182: 13.515 | T182: 13.515 | U182: 13.515 | V182: 13.515 | W182: 13.515 | X182: 13.515 | Y182: 13.515 | Z182: 13.515 | AA182: 13.515 | AB182: 13.515 | AC182: 13.515 | AD182: 13.515 | AE182: =AE181 -> 0 | AF182: =AF181 -> 0.0745 | AG182: =AG181 -> 0.7462443787 | AH182: =AH181 -> 0.169880077 | AI182: =AI181 -> 0.0093755443 | AJ182: =AJ181 -> 0 | AK182: =AK181 -> 0 | AL182: =AL181 -> 0 | AM182: =AM181 -> 0 | AN182: =AN181 -> 0 | AO182: =AO181 -> 0 | AP182: =AP181 -> 0 | AQ182: =AQ181 -> 0 | AR182: =AR181 -> 0 | AT182: =IF(AS182=1,0,IF(AS182=0,0,1)) -> 0
AT183: =IF(AS183=1,0,IF(AS183=0,0,1)) -> 0
A184: 11 | B184: Direct Install Lighting | C184: Verified | D184: 942754.885 | E184: 942754.885 | F184: 932589.935 | G184: 680428.2 | H184: 680428.2 | I184: 202283.617 | J184: 202283.617 | K184: 202141.369 | L184: 202141.369 | M184: 202141.369 | N184: 202141.369 | O184: 202141.369 | Q184: 12 | R184: 237.712 | S184: 237.712 | T184: 235.324 | U184: 174.246 | V184: 174.246 | W184: 42.977 | X184: 42.977 | Y184: 42.834 | Z184: 42.834 | AA184: 42.834 | AB184: 42.834 | AC184: 42.834 | AD184: 42.834 | AE184: 0 | AF184: 0.9482 | AG184: 0.0518 | AS184: =SUM(AE184:AR184) -> 1 | AT184: =IF(AS184=1,0,IF(AS184=0,0,1)) -> 0
B185: Adjustment to 2012 savings | C185: True-up | D185: 65451.467 | E185: 65451.467 | F185: 65451.467 | G185: 52853.313 | H185: 52853.313 | I185: 19258.701 | J185: 19258.701 | K185: 19258.701 | L185: 19258.701 | M185: 19258.701 | N185: 19258.701 | O185: 19258.701 | Q185: =Q184 -> 12 | R185: 19.582 | S185: 19.582 | T185: 19.582 | U185: 15.99 | V185: 15.99 | W185: 4.889 | X185: 4.889 | Y185: 4.889 | Z185: 4.889 | AA185: 4.889 | AB185: 4.889 | AC185: 4.889 | AD185: 4.889 | AE185: =AE184 -> 0 | AF185: =AF184 -> 0.9482 | AG185: =AG184 -> 0.0518 | AH185: =AH184 -> 0 | AI185: =AI184 -> 0 | AJ185: =AJ184 -> 0 | AK185: =AK184 -> 0 | AL185: =AL184 -> 0 | AM185: =AM184 -> 0 | AN185: =AN184 -> 0 | AO185: =AO184 -> 0 | AP185: =AP184 -> 0 | AQ185: =AQ184 -> 0 | AR185: =AR184 -> 0 | AT185: =IF(AS185=1,0,IF(AS185=0,0,1)) -> 0
AT186: =IF(AS186=1,0,IF(AS186=0,0,1)) -> 0
A187: 12 | B187: Building Commissioning | C187: Verified | Q187: 3 | AS187: =SUM(AE187:AR187) -> 0 | AT187: =IF(AS187=1,0,IF(AS187=0,0,1)) -> 0
B188: Adjustment to 2012 savings | C188: True-up | Q188: =Q187 -> 3 | AE188: =AE187 -> 0 | AF188: =AF187 -> 0 | AG188: =AG187 -> 0 | AH188: =AH187 -> 0 | AI188: =AI187 -> 0 | AJ188: =AJ187 -> 0 | AK188: =AK187 -> 0 | AL188: =AL187 -> 0 | AM188: =AM187 -> 0 | AN188: =AN187 -> 0 | AO188: =AO187 -> 0 | AP188: =AP187 -> 0 | AQ188: =AQ187 -> 0 | AR188: =AR187 -> 0 | AT188: =IF(AS188=1,0,IF(AS188=0,0,1)) -> 0
AT189: =IF(AS189=1,0,IF(AS189=0,0,1)) -> 0
A190: 13 | B190: New Construction | C190: Verified | D190: 1596.91 | E190: 1596.91 | F190: 1596.91 | G190: 1596.91 | H190: 1596.91 | I190: 1596.91 | J190: 1596.91 | K190: 1596.91 | L190: 1596.91 | M190: 1596.91 | N190: 1596.91 | O190: 1596.91 | Q190: 12 | R190: 0.735 | S190: 0.735 | T190: 0.735 | U190: 0.735 | V190: 0.735 | W190: 0.735 | X190: 0.735 | Y190: 0.735 | Z190: 0.735 | AA190: 0.735 | AB190: 0.735 | AC190: 0.735 | AD190: 0.735 | AE190: 0 | AF190: 0.3333 | AG190: 0 | AH190: =1-AF190-AE190 -> 0.6667 | AS190: =SUM(AE190:AR190) -> 1 | AT190: =IF(AS190=1,0,IF(AS190=0,0,1)) -> 0
B191: Adjustment to 2012 savings | C191: True-up | Q191: =Q190 -> 12 | AE191: =AE190 -> 0 | AF191: =AF190 -> 0.3333 | AG191: =AG190 -> 0 | AH191: =AH190 -> 0.6667 | AI191: =AI190 -> 0 | AJ191: =AJ190 -> 0 | AK191: =AK190 -> 0 | AL191: =AL190 -> 0 | AM191: =AM190 -> 0 | AN191: =AN190 -> 0 | AO191: =AO190 -> 0 | AP191: =AP190 -> 0 | AQ191: =AQ190 -> 0 | AR191: =AR190 -> 0 | AT191: =IF(AS191=1,0,IF(AS191=0,0,1)) -> 0
AT192: =IF(AS192=1,0,IF(AS192=0,0,1)) -> 0
A193: 14 | B193: Energy Audit | C193: Verified | D193: 125881.272 | E193: 125881.272 | F193: 125881.272 | G193: 125881.272 | H193: 0 | I193: 0 | J193: 0 | K193: 0 | L193: 0 | M193: 0 | N193: 0 | O193: 0 | Q193: 12 | R193: 25.886 | S193: 25.886 | T193: 25.886 | U193: 25.886 | V193: 0 | W193: 0 | X193: 0 | Y193: 0 | Z193: 0 | AA193: 0 | AB193: 0 | AC193: 0 | AD193: 0 | AE193: 0 | AF193: 0.1429 | AG193: 0.8571 | AS193: =SUM(AE193:AR193) -> 1 | AT193: =IF(AS193=1,0,IF(AS193=0,0,1)) -> 0
B194: Adjustment to 2012 savings | C194: True-up | D194: 50352.509 | E194: 50352.509 | F194: 50352.509 | G194: 50352.509 | H194: 0 | I194: 0 | J194: 0 | K194: 0 | L194: 0 | M194: 0 | N194: 0 | O194: 0 | Q194: =Q193 -> 12 | R194: 10.354 | S194: 10.354 | T194: 10.354 | U194: 10.354 | V194: 0 | W194: 0 | X194: 0 | Y194: 0 | Z194: 0 | AA194: 0 | AB194: 0 | AC194: 0 | AD194: 0 | AE194: =AE193 -> 0 | AF194: =AF193 -> 0.1429 | AG194: =AG193 -> 0.8571 | AH194: =AH193 -> 0 | AI194: =AI193 -> 0 | AJ194: =AJ193 -> 0 | AK194: =AK193 -> 0 | AL194: =AL193 -> 0 | AM194: =AM193 -> 0 | AN194: =AN193 -> 0 | AO194: =AO193 -> 0 | AP194: =AP193 -> 0 | AQ194: =AQ193 -> 0 | AR194: =AR193 -> 0 | AT194: =IF(AS194=1,0,IF(AS194=0,0,1)) -> 0
AT195: =IF(AS195=1,0,IF(AS195=0,0,1)) -> 0
A196: 15 | B196: Small Commercial Demand Response | C196: Verified | AS196: =SUM(AE196:AR196) -> 0 | AT196: =IF(AS196=1,0,IF(AS196=0,0,1)) -> 0
B197: Adjustment to 2012 savings | C197: True-up | AE197: =AE196 -> 0 | AF197: =AF196 -> 0 | AG197: =AG196 -> 0 | AH197: =AH196 -> 0 | AI197: =AI196 -> 0 | AJ197: =AJ196 -> 0 | AK197: =AK196 -> 0 | AL197: =AL196 -> 0 | AM197: =AM196 -> 0 | AN197: =AN196 -> 0 | AO197: =AO196 -> 0 | AP197: =AP196 -> 0 | AQ197: =AQ196 -> 0 | AR197: =AR196 -> 0 | AT197: =IF(AS197=1,0,IF(AS197=0,0,1)) -> 0
AT198: =IF(AS198=1,0,IF(AS198=0,0,1)) -> 0
A199: 16 | B199: Small Commercial Demand Response (IHD) | C199: Verified | AS199: =SUM(AE199:AR199) -> 0 | AT199: =IF(AS199=1,0,IF(AS199=0,0,1)) -> 0
B200: Adjustment to 2012 savings | C200: True-up | AE200: =AE199 -> 0 | AF200: =AF199 -> 0 | AG200: =AG199 -> 0 | AH200: =AH199 -> 0 | AI200: =AI199 -> 0 | AJ200: =AJ199 -> 0 | AK200: =AK199 -> 0 | AL200: =AL199 -> 0 | AM200: =AM199 -> 0 | AN200: =AN199 -> 0 | AO200: =AO199 -> 0 | AP200: =AP199 -> 0 | AQ200: =AQ199 -> 0 | AR200: =AR199 -> 0 | AT200: =IF(AS200=1,0,IF(AS200=0,0,1)) -> 0
AT201: =IF(AS201=1,0,IF(AS201=0,0,1)) -> 0
A202: 17 | B202: Demand Response 3 | C202: Verified | AS202: =SUM(AE202:AR202) -> 0 | AT202: =IF(AS202=1,0,IF(AS202=0,0,1)) -> 0
B203: Adjustment to 2012 savings | C203: True-up | AE203: =AE202 -> 0 | AF203: =AF202 -> 0 | AG203: =AG202 -> 0 | AH203: =AH202 -> 0 | AI203: =AI202 -> 0 | AJ203: =AJ202 -> 0 | AK203: =AK202 -> 0 | AL203: =AL202 -> 0 | AM203: =AM202 -> 0 | AN203: =AN202 -> 0 | AO203: =AO202 -> 0 | AP203: =AP202 -> 0 | AQ203: =AQ202 -> 0 | AR203: =AR202 -> 0 | AT203: =IF(AS203=1,0,IF(AS203=0,0,1)) -> 0
AT204: =IF(AS204=1,0,IF(AS204=0,0,1)) -> 0
B205: Industrial Program | AT205: =IF(AS205=1,0,IF(AS205=0,0,1)) -> 0
... 341 more rows

Sheet 5. 2015-2020 LRAM
B14: Legend | C14: User Inputs (Green)
C15: Auto Populated Cells (White)
C16: Instructions (Grey)
B18: Instructions | C18: 1. LDCs can apply for disposition of LRAMVA amounts at any time, but at a minimum, must do so as part of a cost of service (COS) application. The following LRAMVA work forms apply to LDCs that need to recover lost revenues from the 2015-2020 period. Please input or manually link the savings, adjustments and program savings persistence data in these tables from the LDC's Persistence Reports provided by the IESO (in Tab 7). As noted earlier, persistence data is available upon request from the IESO. Please also be advised that the same rate classes (of up to 14) are carried over from the Summary Tab 1.
C19: 2. Please ensure that the IESO verified savings adjustments apply back to the program year it relates to. For example, savings adjustments related to 2016 programs that were reported by the IESO in 2017 should be included in the 2016 program savings table. In order for persisting savings to be claimed in future years, past year's initiative level savings results need to be filled out in the tables below. If the IESO adjustments were made available to the LDC after the LRAMVA was approved, the persistence of those savings adjustments in the future can be claimed as approved LRAMVA amounts are considered to be final.
C20: 3. The work forms below include the monthly multipliers for most programs in order to claim demand savings from energy efficiency programs, consistent with the monthly multipliers indicated in the OEB's updated LRAM policy related to peak demand savings in EB-2016-0182. Demand Response (DR3) savings should generally not be included with the LRAMVA calculation, unless suported by empirical evidence. LDCs are requested to confirm the monthly multipliers for all programs each year as placeholder values are provided. If a different monthly multiplier is used, please include rationale in Tab 1-a and highlight the new multiplier that has been used.
C21: 4. LDC are requested to input the applicable rate class allocation percentages to allocate actual savings to the rate classes. The generic template currently includes the same allocation percentage for program savings and its savings adjustments. If a different allocation is proposed for savings adjustments, LDCs must provide supporting rationale in Tab 1-a and highlight the change.
C22: 5. The persistence of future savings is expected to be included in the distributor's load forecast after re-basing. LDCs are requested to delete the applicable savings persistence rows (auto-calculated after the LRAMVA totals for the year) if future year's persistence of savings is already captured in the updated load forecast. Please also provide assumptions about the years in which persistence is captured in the load forecast calculation in the "Notes" section below each table.
B24: Tables | C24: Table 5-a. 2015 Lost Revenues
C25: Table 5-b. 2016 Lost Revenues
C26: Table 5-c. 2017 Lost Revenues
C27: Table 5-d. 2018 Lost Revenues
C28: Table 5-e. 2019 Lost Revenues
C29: Table 5-f. 2020 Lost Revenues
B33: Table 5-a. 2015 Lost Revenues Work Form
B34: Program | C34: Results Status | D34: Net Energy Savings (kWh) | E34: Net Energy Savings Persistence (kWh) | N34: Monthly Multiplier | O34: Net Demand Savings (kW) | P34: Net Peak Demand Savings Persistence (kW) | Y34: Rate Allocations for LRAMVA
D35: 2015 | E35: 2016 | F35: 2017 | G35: 2018 | H35: 2019 | I35: 2020 | J35: 2021 | K35: 2022 | L35: 2023 | M35: 2024 | O35: 2015 | P35: 2016 | Q35: 2017 | R35: 2018 | S35: 2019 | T35: 2020 | U35: 2021 | V35: 2022 | W35: 2023 | X35: 2024 | Y35: Residential | Z35: GS<50 kW | AA35: GS 50 to 4,999 kW | AB35: Large Use | AC35: Street Lights | AD35: Unmetered Scattered Load | AM35: Total | AN35: Check | AO35: (If =/= 0, shares allocated to kW-billed classes are adjusted so total is euqal to 100%. This may occur due to differences in kWh and kW savings allocations.)
B36: Legacy Framework | Y36: kWh | Z36: kWh | AA36: kWh | AB36: kWh | AC36: kWh | AD36: kWh | AE36: 0 | AF36: 0 | AG36: 0 | AH36: 0 | AI36: 0 | AJ36: 0 | AK36: 0 | AL36: 0
B37: Residential Program
A38: 1 | B38: Coupon Initiative | C38: Verified | D38: 262797 | E38: 260471 | F38: 260471 | G38: 260471 | H38: 260471 | I38: 260471 | J38: 260471 | K38: 260290 | L38: 260290 | M38: 260290 | O38: 17 | P38: 17 | Q38: 17 | R38: 17 | S38: 17 | T38: 17 | U38: 17 | V38: 17 | W38: 17 | X38: 17 | Y38: 1 | AM38: =SUM(Y38:AL38) -> 1 | AN38: =IF(AM38=1,0,IF(AM38=0,0,1)) -> 0
B39: Adjustment to 2015 savings | C39: True-up | D39: 28983 | E39: 28610 | F39: 28610 | G39: 28610 | H39: 28610 | I39: 28610 | J39: 28610 | K39: 28448 | L39: 28448 | M39: 28448 | O39: 3 | P39: 3 | Q39: 3 | R39: 3 | S39: 3 | T39: 3 | U39: 3 | V39: 3 | W39: 3 | X39: 3 | Y39: =Y38 -> 1 | Z39: =Z38 -> 0 | AA39: =AA38 -> 0 | AB39: =AB38 -> 0 | AC39: =AC38 -> 0 | AD39: =AD38 -> 0 | AE39: =AE38 -> 0 | AF39: =AF38 -> 0 | AG39: =AG38 -> 0 | AH39: =AH38 -> 0 | AI39: =AI38 -> 0 | AJ39: =AJ38 -> 0 | AK39: =AK38 -> 0 | AL39: =AL38 -> 0 | AN39: =IF(AM39=1,0,IF(AM39=0,0,1)) -> 0
AN40: =IF(AM40=1,0,IF(AM40=0,0,1)) -> 0
A41: 2 | B41: Bi-Annual Retailer Event Initiative | C41: Verified | D41: 470696 | E41: 462331 | F41: 462331 | G41: 462331 | H41: 462331 | I41: 462331 | J41: 462331 | K41: 462089 | L41: 462089 | M41: 462089 | O41: 32 | P41: 31 | Q41: 31 | R41: 31 | S41: 31 | T41: 31 | U41: 31 | V41: 31 | W41: 31 | X41: 31 | Y41: 1 | AM41: =SUM(Y41:AL41) -> 1 | AN41: =IF(AM41=1,0,IF(AM41=0,0,1)) -> 0
B42: Adjustment to 2015 savings | C42: True-up | D42: 2923 | E42: 2889 | F42: 2889 | G42: 2889 | H42: 2889 | I42: 2889 | J42: 2889 | K42: 2882 | L42: 2882 | M42: 2882 | O42: 0 | P42: 0 | Q42: 0 | R42: 0 | S42: 0 | T42: 0 | U42: 0 | V42: 0 | W42: 0 | X42: 0 | Y42: =Y41 -> 1 | Z42: =Z41 -> 0 | AA42: =AA41 -> 0 | AB42: =AB41 -> 0 | AC42: =AC41 -> 0 | AD42: =AD41 -> 0 | AE42: =AE41 -> 0 | AF42: =AF41 -> 0 | AG42: =AG41 -> 0 | AH42: =AH41 -> 0 | AI42: =AI41 -> 0 | AJ42: =AJ41 -> 0 | AK42: =AK41 -> 0 | AL42: =AL41 -> 0 | AN42: =IF(AM42=1,0,IF(AM42=0,0,1)) -> 0
AN43: =IF(AM43=1,0,IF(AM43=0,0,1)) -> 0
A44: 3 | B44: Appliance Retirement Initiative | C44: Verified | D44: 9159 | E44: 9159 | F44: 9159 | G44: 9159 | H44: 6105 | I44: 0 | J44: 0 | K44: 0 | L44: 0 | M44: 0 | O44: 1 | P44: 1 | Q44: 1 | R44: 1 | S44: 1 | T44: 0 | U44: 0 | V44: 0 | W44: 0 | X44: 0 | Y44: 1 | AM44: =SUM(Y44:AL44) -> 1 | AN44: =IF(AM44=1,0,IF(AM44=0,0,1)) -> 0
B45: Adjustment to 2015 savings | C45: True-up | Y45: =Y44 -> 1 | Z45: =Z44 -> 0 | AA45: =AA44 -> 0 | AB45: =AB44 -> 0 | AC45: =AC44 -> 0 | AD45: =AD44 -> 0 | AE45: =AE44 -> 0 | AF45: =AF44 -> 0 | AG45: =AG44 -> 0 | AH45: =AH44 -> 0 | AI45: =AI44 -> 0 | AJ45: =AJ44 -> 0 | AK45: =AK44 -> 0 | AL45: =AL44 -> 0 | AN45: =IF(AM45=1,0,IF(AM45=0,0,1)) -> 0
AN46: =IF(AM46=1,0,IF(AM46=0,0,1)) -> 0
A47: 4 | B47: HVAC Incentives Initiative | C47: Verified | D47: 270422 | E47: 270422 | F47: 270422 | G47: 270422 | H47: 270422 | I47: 270422 | J47: 270422 | K47: 270422 | L47: 270422 | M47: 270422 | O47: 138 | P47: 138 | Q47: 138 | R47: 138 | S47: 138 | T47: 138 | U47: 138 | V47: 138 | W47: 138 | X47: 138 | Y47: 1 | AM47: =SUM(Y47:AL47) -> 1 | AN47: =IF(AM47=1,0,IF(AM47=0,0,1)) -> 0
B48: Adjustment to 2015 savings | C48: True-up | D48: 2856 | E48: 2856 | F48: 2856 | G48: 2856 | H48: 2856 | I48: 2856 | J48: 2856 | K48: 2856 | L48: 2856 | M48: 2856 | O48: 1 | P48: 1 | Q48: 1 | R48: 1 | S48: 1 | T48: 1 | U48: 1 | V48: 1 | W48: 1 | X48: 1 | Y48: =Y47 -> 1 | Z48: =Z47 -> 0 | AA48: =AA47 -> 0 | AB48: =AB47 -> 0 | AC48: =AC47 -> 0 | AD48: =AD47 -> 0 | AE48: =AE47 -> 0 | AF48: =AF47 -> 0 | AG48: =AG47 -> 0 | AH48: =AH47 -> 0 | AI48: =AI47 -> 0 | AJ48: =AJ47 -> 0 | AK48: =AK47 -> 0 | AL48: =AL47 -> 0 | AN48: =IF(AM48=1,0,IF(AM48=0,0,1)) -> 0
AN49: =IF(AM49=1,0,IF(AM49=0,0,1)) -> 0
A50: 5 | B50: Residential New Construction and Major Renovation Initiative | C50: Verified | AM50: =SUM(Y50:AL50) -> 0 | AN50: =IF(AM50=1,0,IF(AM50=0,0,1)) -> 0
B51: Adjustment to 2015 savings | C51: True-up | Y51: =Y50 -> 0 | Z51: =Z50 -> 0 | AA51: =AA50 -> 0 | AB51: =AB50 -> 0 | AC51: =AC50 -> 0 | AD51: =AD50 -> 0 | AE51: =AE50 -> 0 | AF51: =AF50 -> 0 | AG51: =AG50 -> 0 | AH51: =AH50 -> 0 | AI51: =AI50 -> 0 | AJ51: =AJ50 -> 0 | AK51: =AK50 -> 0 | AL51: =AL50 -> 0 | AN51: =IF(AM51=1,0,IF(AM51=0,0,1)) -> 0
AB52: =AA53+AB53 -> 1.002 | AN52: =IF(AM52=1,0,IF(AM52=0,0,1)) -> 0
B53: Commercial & Institutional Program | AA53: 0.172 | AB53: 0.83 | AM53: 1 | AN53: =IF(AM53=1,0,IF(AM53=0,0,1)) -> 0
A54: 6 | B54: Energy Audit Initiative | C54: Verified | D54: 3081806 | E54: 3081806 | F54: 3078665 | G54: 3076088 | H54: 3076088 | I54: 3076088 | J54: 3035313 | K54: 3035313 | L54: 3024550 | M54: 2887702 | N54: 12 | O54: 0 | P54: 0 | Q54: 0 | R54: 0 | S54: 0 | T54: 0 | U54: 0 | V54: 0 | W54: 0 | X54: 0 | AA54: =$AM$53/$AB$52*AA53 -> 0.1716566866 | AB54: =$AM$53/$AB$52*AB53 -> 0.8283433134 | AM54: =SUM(Y54:AL54) -> 1 | AN54: =IF(AM54=1,0,IF(AM54=0,0,1)) -> 0
B55: Adjustment to 2015 savings | C55: True-up | N55: =N54 -> 12 | Y55: =Y54 -> 0 | Z55: =Z54 -> 0 | AA55: =AA54 -> 0.1716566866 | AB55: =AB54 -> 0.8283433134 | AC55: =AC54 -> 0 | AD55: =AD54 -> 0 | AE55: =AE54 -> 0 | AF55: =AF54 -> 0 | AG55: =AG54 -> 0 | AH55: =AH54 -> 0 | AI55: =AI54 -> 0 | AJ55: =AJ54 -> 0 | AK55: =AK54 -> 0 | AL55: =AL54 -> 0 | AN55: =IF(AM55=1,0,IF(AM55=0,0,1)) -> 0
AN56: =IF(AM56=1,0,IF(AM56=0,0,1)) -> 0
A57: 7 | B57: Efficiency: Equipment Replacement Incentive Initiative | C57: Verified | D57: 3081806 | E57: 3081806 | F57: 3078665 | G57: 3076088 | H57: 3076088 | I57: 3076088 | J57: 3035313 | K57: 3035313 | L57: 3024550 | M57: 2887702 | N57: 12 | O57: 1168 | P57: 1168 | Q57: 1167 | R57: 1166 | S57: 1166 | T57: 1166 | U57: 1091 | V57: 1091 | W57: 1090 | X57: 845 | Y57: 0.015 | Z57: 0.531 | AA57: 0.37 | AB57: 0.084 | AM57: =SUM(Y57:AL57) -> 1 | AN57: =IF(AM57=1,0,IF(AM57=0,0,1)) -> 0
B58: Adjustment to 2015 savings | C58: True-up | D58: =1339636+(-126611) -> 1213025 | E58: =1339636-126611 -> 1213025 | F58: =1339636+-122672 -> 1216964 | G58: =1339636+-59234 -> 1280402 | H58: =1339636+-59234 -> 1280402 | I58: =1339636+-59234 -> 1280402 | J58: =1319887+19146 -> 1339033 | K58: =1319887+19146 -> 1339033 | L58: =1319887+34519 -> 1354406 | M58: =1236218+14110 -> 1250328 | N58: =N57 -> 12 | O58: -6 | P58: -6 | Q58: -4 | R58: 15 | S58: 15 | T58: 15 | U58: 124 | V58: 126 | W58: 92 | X58: 4 | Y58: =Y57 -> 0.015 | Z58: =Z57 -> 0.531 | AA58: =AA57 -> 0.37 | AB58: =AB57 -> 0.084 | AC58: =AC57 -> 0 | AD58: =AD57 -> 0 | AE58: =AE57 -> 0 | AF58: =AF57 -> 0 | AG58: =AG57 -> 0 | AH58: =AH57 -> 0 | AI58: =AI57 -> 0 | AJ58: =AJ57 -> 0 | AK58: =AK57 -> 0 | AL58: =AL57 -> 0 | AN58: =IF(AM58=1,0,IF(AM58=0,0,1)) -> 0
AN59: =IF(AM59=1,0,IF(AM59=0,0,1)) -> 0
A60: 8 | B60: Direct Install Lighting and Water Heating Initiative | C60: Verified | D60: 192412 | E60: 165403 | F60: 135289 | G60: 127140 | H60: 127140 | I60: 127140 | J60: 127140 | K60: 127140 | L60: 127140 | M60: 127140 | N60: 12 | O60: 44 | P60: 38 | Q60: 30 | R60: 28 | S60: 28 | T60: 28 | U60: 28 | V60: 28 | W60: 28 | X60: 28 | Z60: 0.8273 | AA60: 0.1727 | AM60: =SUM(Y60:AL60) -> 1 | AN60: =IF(AM60=1,0,IF(AM60=0,0,1)) -> 0
B61: Adjustment to 2015 savings | C61: True-up | D61: -63914 | E61: -33916 | F61: -469 | G61: 8053 | H61: 8053 | I61: 8053 | J61: 8053 | K61: 8053 | L61: 8053 | M61: 8053 | N61: =N60 -> 12 | O61: -16 | P61: -9 | Q61: - | R61: 2 | S61: 2 | T61: 2 | U61: 2 | V61: 2 | W61: 2 | X61: 2 | Y61: =Y60 -> 0 | Z61: =Z60 -> 0.8273 | AA61: =AA60 -> 0.1727 | AB61: =AB60 -> 0 | AC61: =AC60 -> 0 | AD61: =AD60 -> 0 | AE61: =AE60 -> 0 | AF61: =AF60 -> 0 | AG61: =AG60 -> 0 | AH61: =AH60 -> 0 | AI61: =AI60 -> 0 | AJ61: =AJ60 -> 0 | AK61: =AK60 -> 0 | AL61: =AL60 -> 0 | AN61: =IF(AM61=1,0,IF(AM61=0,0,1)) -> 0
AN62: =IF(AM62=1,0,IF(AM62=0,0,1)) -> 0
A63: 9 | B63: New Construction and Major Renovation Initiative | C63: Verified | D63: 193566 | E63: 193566 | F63: 193566 | G63: 193566 | H63: 193566 | I63: 193566 | J63: 193566 | K63: 193566 | L63: 193566 | M63: 193566 | N63: 12 | O63: 70 | P63: 70 | Q63: 70 | R63: 70 | S63: 70 | T63: 70 | U63: 70 | V63: 70 | W63: 70 | X63: 70 | Z63: 0.5 | AA63: 0.5 | AM63: =SUM(Y63:AL63) -> 1 | AN63: =IF(AM63=1,0,IF(AM63=0,0,1)) -> 0
B64: Adjustment to 2015 savings | C64: True-up | D64: 115495 | E64: 115495 | F64: 115495 | G64: 115495 | H64: 115495 | I64: 115495 | J64: 115495 | K64: 115495 | L64: 115495 | M64: 115495 | N64: =N63 -> 12 | O64: 20 | P64: 20 | Q64: 20 | R64: 20 | S64: 20 | T64: 20 | U64: 20 | V64: 20 | W64: 20 | X64: 20 | Y64: =Y63 -> 0 | Z64: =Z63 -> 0.5 | AA64: =AA63 -> 0.5 | AB64: =AB63 -> 0 | AC64: =AC63 -> 0 | AD64: =AD63 -> 0 | AE64: =AE63 -> 0 | AF64: =AF63 -> 0 | AG64: =AG63 -> 0 | AH64: =AH63 -> 0 | AI64: =AI63 -> 0 | AJ64: =AJ63 -> 0 | AK64: =AK63 -> 0 | AL64: =AL63 -> 0 | AN64: =IF(AM64=1,0,IF(AM64=0,0,1)) -> 0
AN65: =IF(AM65=1,0,IF(AM65=0,0,1)) -> 0
A66: 10 | B66: Existing Building Commissioning Incentive Initiative | C66: Verified | N66: 3 | AM66: =SUM(Y66:AL66) -> 0 | AN66: =IF(AM66=1,0,IF(AM66=0,0,1)) -> 0
B67: Adjustment to 2015 savings | C67: True-up | N67: =N66 -> 3 | Y67: =Y66 -> 0 | Z67: =Z66 -> 0 | AA67: =AA66 -> 0 | AB67: =AB66 -> 0 | AC67: =AC66 -> 0 | AD67: =AD66 -> 0 | AE67: =AE66 -> 0 | AF67: =AF66 -> 0 | AG67: =AG66 -> 0 | AH67: =AH66 -> 0 | AI67: =AI66 -> 0 | AJ67: =AJ66 -> 0 | AK67: =AK66 -> 0 | AL67: =AL66 -> 0 | AN67: =IF(AM67=1,0,IF(AM67=0,0,1)) -> 0
AN68: =IF(AM68=1,0,IF(AM68=0,0,1)) -> 0
B69: Industrial Program | AN69: =IF(AM69=1,0,IF(AM69=0,0,1)) -> 0
A70: 11 | B70: Process and Systems Upgrades Initiatives - Project Incentive Initiative | C70: Verified | N70: 12 | AM70: =SUM(Y70:AL70) -> 0 | AN70: =IF(AM70=1,0,IF(AM70=0,0,1)) -> 0
B71: Adjustment to 2015 savings | C71: True-up | N71: =N70 -> 12 | Y71: =Y70 -> 0 | Z71: =Z70 -> 0 | AA71: =AA70 -> 0 | AB71: =AB70 -> 0 | AC71: =AC70 -> 0 | AD71: =AD70 -> 0 | AE71: =AE70 -> 0 | AF71: =AF70 -> 0 | AG71: =AG70 -> 0 | AH71: =AH70 -> 0 | AI71: =AI70 -> 0 | AJ71: =AJ70 -> 0 | AK71: =AK70 -> 0 | AL71: =AL70 -> 0 | AN71: =IF(AM71=1,0,IF(AM71=0,0,1)) -> 0
AN72: =IF(AM72=1,0,IF(AM72=0,0,1)) -> 0
A73: 12 | B73: Process and Systems Upgrades Initiatives - Monitoring and Targeting Initiative | C73: Verified | N73: 12 | AM73: =SUM(Y73:AL73) -> 0 | AN73: =IF(AM73=1,0,IF(AM73=0,0,1)) -> 0
B74: Adjustment to 2015 savings | C74: True-up | N74: =N73 -> 12 | Y74: =Y73 -> 0 | Z74: =Z73 -> 0 | AA74: =AA73 -> 0 | AB74: =AB73 -> 0 | AC74: =AC73 -> 0 | AD74: =AD73 -> 0 | AE74: =AE73 -> 0 | AF74: =AF73 -> 0 | AG74: =AG73 -> 0 | AH74: =AH73 -> 0 | AI74: =AI73 -> 0 | AJ74: =AJ73 -> 0 | AK74: =AK73 -> 0 | AL74: =AL73 -> 0 | AN74: =IF(AM74=1,0,IF(AM74=0,0,1)) -> 0
AN75: =IF(AM75=1,0,IF(AM75=0,0,1)) -> 0
A76: 13 | B76: Process and Systems Upgrades Initiatives - Energy Manager Initiative | C76: Verified | D76: 17413 | E76: 17413 | F76: 17413 | G76: 17413 | H76: 17413 | I76: 17413 | J76: 17413 | K76: 17413 | L76: 17413 | M76: 17413 | N76: 12 | O76: 5 | P76: 5 | Q76: 5 | R76: 5 | S76: 5 | T76: 5 | U76: 5 | V76: 5 | W76: 5 | X76: 5 | AA76: 0.5 | AB76: 0.5 | AM76: =SUM(Y76:AL76) -> 1 | AN76: =IF(AM76=1,0,IF(AM76=0,0,1)) -> 0
B77: Adjustment to 2015 savings | C77: True-up | N77: =N76 -> 12 | Y77: =Y76 -> 0 | Z77: =Z76 -> 0 | AA77: =AA76 -> 0.5 | AB77: =AB76 -> 0.5 | AC77: =AC76 -> 0 | AD77: =AD76 -> 0 | AE77: =AE76 -> 0 | AF77: =AF76 -> 0 | AG77: =AG76 -> 0 | AH77: =AH76 -> 0 | AI77: =AI76 -> 0 | AJ77: =AJ76 -> 0 | AK77: =AK76 -> 0 | AL77: =AL76 -> 0 | AN77: =IF(AM77=1,0,IF(AM77=0,0,1)) -> 0
AN78: =IF(AM78=1,0,IF(AM78=0,0,1)) -> 0
B79: Low Income Program | AN79: =IF(AM79=1,0,IF(AM79=0,0,1)) -> 0
A80: 14 | B80: Low Income Initiative | C80: Verified | D80: 46048 | E80: 40499 | F80: 39584 | G80: 38673 | H80: 38535 | I80: 38535 | J80: 37436 | K80: 37436 | L80: 29388 | M80: 29111 | N80: 12 | O80: 4 | P80: 4 | Q80: 4 | R80: 4 | S80: 4 | T80: 4 | U80: 3 | V80: 3 | W80: 3 | X80: 3 | Y80: 1 | AM80: =SUM(Y80:AL80) -> 1 | AN80: =IF(AM80=1,0,IF(AM80=0,0,1)) -> 0
B81: Adjustment to 2015 savings | C81: True-up | N81: =N80 -> 12 | Y81: =Y80 -> 1 | Z81: =Z80 -> 0 | AA81: =AA80 -> 0 | AB81: =AB80 -> 0 | AC81: =AC80 -> 0 | AD81: =AD80 -> 0 | AE81: =AE80 -> 0 | AF81: =AF80 -> 0 | AG81: =AG80 -> 0 | AH81: =AH80 -> 0 | AI81: =AI80 -> 0 | AJ81: =AJ80 -> 0 | AK81: =AK80 -> 0 | AL81: =AL80 -> 0 | AN81: =IF(AM81=1,0,IF(AM81=0,0,1)) -> 0
AN82: =IF(AM82=1,0,IF(AM82=0,0,1)) -> 0
B83: Other | AN83: =IF(AM83=1,0,IF(AM83=0,0,1)) -> 0
A84: 15 | B84: Aboriginal Conservation Program | C84: Verified | N84: 0 | AM84: =SUM(Y84:AL84) -> 0 | AN84: =IF(AM84=1,0,IF(AM84=0,0,1)) -> 0
B85: Adjustment to 2015 savings | C85: True-up | N85: =N84 -> 0 | Y85: =Y84 -> 0 | Z85: =Z84 -> 0 | AA85: =AA84 -> 0 | AB85: =AB84 -> 0 | AC85: =AC84 -> 0 | AD85: =AD84 -> 0 | AE85: =AE84 -> 0 | AF85: =AF84 -> 0 | AG85: =AG84 -> 0 | AH85: =AH84 -> 0 | AI85: =AI84 -> 0 | AJ85: =AJ84 -> 0 | AK85: =AK84 -> 0 | AL85: =AL84 -> 0 | AN85: =IF(AM85=1,0,IF(AM85=0,0,1)) -> 0
AN86: =IF(AM86=1,0,IF(AM86=0,0,1)) -> 0
A87: 16 | B87: Program Enabled Savings | C87: Verified | N87: 0 | AM87: =SUM(Y87:AL87) -> 0 | AN87: =IF(AM87=1,0,IF(AM87=0,0,1)) -> 0
B88: Adjustment to 2015 savings | C88: True-up | N88: =N87 -> 0 | Y88: =Y87 -> 0 | Z88: =Z87 -> 0 | AA88: =AA87 -> 0 | AB88: =AB87 -> 0 | AC88: =AC87 -> 0 | AD88: =AD87 -> 0 | AE88: =AE87 -> 0 | AF88: =AF87 -> 0 | AG88: =AG87 -> 0 | AH88: =AH87 -> 0 | AI88: =AI87 -> 0 | AJ88: =AJ87 -> 0 | AK88: =AK87 -> 0 | AL88: =AL87 -> 0 | AN88: =IF(AM88=1,0,IF(AM88=0,0,1)) -> 0
AN89: =IF(AM89=1,0,IF(AM89=0,0,1)) -> 0
B90: Conservation Fund Pilots | AN90: =IF(AM90=1,0,IF(AM90=0,0,1)) -> 0
A91: 17 | B91: Conservation Fund Pilot - EnerNOC | C91: Verified | N91: 12 | AM91: =SUM(Y91:AL91) -> 0 | AN91: =IF(AM91=1,0,IF(AM91=0,0,1)) -> 0
B92: Adjustment to 2015 savings | C92: True-up | N92: =N91 -> 12 | Y92: =Y91 -> 0 | Z92: =Z91 -> 0 | AA92: =AA91 -> 0 | AB92: =AB91 -> 0 | AC92: =AC91 -> 0 | AD92: =AD91 -> 0 | AE92: =AE91 -> 0 | AF92: =AF91 -> 0 | AG92: =AG91 -> 0 | AH92: =AH91 -> 0 | AI92: =AI91 -> 0 | AJ92: =AJ91 -> 0 | AK92: =AK91 -> 0 | AL92: =AL91 -> 0 | AN92: =IF(AM92=1,0,IF(AM92=0,0,1)) -> 0
AN93: =IF(AM93=1,0,IF(AM93=0,0,1)) -> 0
A94: 18 | B94: Loblaws Pilot | C94: Verified | N94: 12 | AM94: =SUM(Y94:AL94) -> 0 | AN94: =IF(AM94=1,0,IF(AM94=0,0,1)) -> 0
B95: Adjustment to 2015 savings | C95: True-up | N95: =N94 -> 12 | Y95: =Y94 -> 0 | Z95: =Z94 -> 0 | AA95: =AA94 -> 0 | AB95: =AB94 -> 0 | AC95: =AC94 -> 0 | AD95: =AD94 -> 0 | AE95: =AE94 -> 0 | AF95: =AF94 -> 0 | AG95: =AG94 -> 0 | AH95: =AH94 -> 0 | AI95: =AI94 -> 0 | AJ95: =AJ94 -> 0 | AK95: =AK94 -> 0 | AL95: =AL94 -> 0 | AN95: =IF(AM95=1,0,IF(AM95=0,0,1)) -> 0
AN96: =IF(AM96=1,0,IF(AM96=0,0,1)) -> 0
A97: 19 | B97: Conservation Fund Pilot - SEG | C97: Verified | N97: 12 | AM97: =SUM(Y97:AL97) -> 0 | AN97: =IF(AM97=1,0,IF(AM97=0,0,1)) -> 0
B98: Adjustment to 2015 savings | C98: True-up | N98: =N97 -> 12 | Y98: =Y97 -> 0 | Z98: =Z97 -> 0 | AA98: =AA97 -> 0 | AB98: =AB97 -> 0 | AC98: =AC97 -> 0 | AD98: =AD97 -> 0 | AE98: =AE97 -> 0 | AF98: =AF97 -> 0 | AG98: =AG97 -> 0 | AH98: =AH97 -> 0 | AI98: =AI97 -> 0 | AJ98: =AJ97 -> 0 | AK98: =AK97 -> 0 | AL98: =AL97 -> 0 | AN98: =IF(AM98=1,0,IF(AM98=0,0,1)) -> 0
AN99: =IF(AM99=1,0,IF(AM99=0,0,1)) -> 0
A100: 20 | B100: Social Benchmarking Pliot | C100: Verified | N100: 12 | AM100: =SUM(Y100:AL100) -> 0 | AN100: =IF(AM100=1,0,IF(AM100=0,0,1)) -> 0
B101: Adjustment to 2015 savings | C101: True-up | N101: =N100 -> 12 | Y101: =Y100 -> 0 | Z101: =Z100 -> 0 | AA101: =AA100 -> 0 | AB101: =AB100 -> 0 | AC101: =AC100 -> 0 | AD101: =AD100 -> 0 | AE101: =AE100 -> 0 | AF101: =AF100 -> 0 | AG101: =AG100 -> 0 | AH101: =AH100 -> 0 | AI101: =AI100 -> 0 | AJ101: =AJ100 -> 0 | AK101: =AK100 -> 0 | AL101: =AL100 -> 0 | AN101: =IF(AM101=1,0,IF(AM101=0,0,1)) -> 0
AN102: =IF(AM102=1,0,IF(AM102=0,0,1)) -> 0
B103: Conservation First Framework | AN103: =IF(AM103=1,0,IF(AM103=0,0,1)) -> 0
B104: Residential Province-Wide Programs | AN104: =IF(AM104=1,0,IF(AM104=0,0,1)) -> 0
A105: 21 | B105: Save on Energy Coupon Program | C105: Verified | AM105: =SUM(Y105:AL105) -> 0 | AN105: =IF(AM105=1,0,IF(AM105=0,0,1)) -> 0
B106: Adjustment to 2015 savings | C106: True-up | Y106: =Y105 -> 0 | Z106: =Z105 -> 0 | AA106: =AA105 -> 0 | AB106: =AB105 -> 0 | AC106: =AC105 -> 0 | AD106: =AD105 -> 0 | AE106: =AE105 -> 0 | AF106: =AF105 -> 0 | AG106: =AG105 -> 0 | AH106: =AH105 -> 0 | AI106: =AI105 -> 0 | AJ106: =AJ105 -> 0 | AK106: =AK105 -> 0 | AL106: =AL105 -> 0 | AN106: =IF(AM106=1,0,IF(AM106=0,0,1)) -> 0
AN107: =IF(AM107=1,0,IF(AM107=0,0,1)) -> 0
A108: 22 | B108: Save on Energy Heating and Cooling Program | C108: Verified | AM108: =SUM(Y108:AL108) -> 0 | AN108: =IF(AM108=1,0,IF(AM108=0,0,1)) -> 0
B109: Adjustment to 2015 savings | C109: True-up | Y109: =Y108 -> 0 | Z109: =Z108 -> 0 | AA109: =AA108 -> 0 | AB109: =AB108 -> 0 | AC109: =AC108 -> 0 | AD109: =AD108 -> 0 | AE109: =AE108 -> 0 | AF109: =AF108 -> 0 | AG109: =AG108 -> 0 | AH109: =AH108 -> 0 | AI109: =AI108 -> 0 | AJ109: =AJ108 -> 0 | AK109: =AK108 -> 0 | AL109: =AL108 -> 0 | AN109: =IF(AM109=1,0,IF(AM109=0,0,1)) -> 0
AN110: =IF(AM110=1,0,IF(AM110=0,0,1)) -> 0
A111: 23 | B111: Save on Energy New Construction Program | C111: Verified | AM111: =SUM(Y111:AL111) -> 0 | AN111: =IF(AM111=1,0,IF(AM111=0,0,1)) -> 0
B112: Adjustment to 2015 savings | C112: True-up | Y112: =Y111 -> 0 | Z112: =Z111 -> 0 | AA112: =AA111 -> 0 | AB112: =AB111 -> 0 | AC112: =AC111 -> 0 | AD112: =AD111 -> 0 | AE112: =AE111 -> 0 | AF112: =AF111 -> 0 | AG112: =AG111 -> 0 | AH112: =AH111 -> 0 | AI112: =AI111 -> 0 | AJ112: =AJ111 -> 0 | AK112: =AK111 -> 0 | AL112: =AL111 -> 0 | AN112: =IF(AM112=1,0,IF(AM112=0,0,1)) -> 0
AN113: =IF(AM113=1,0,IF(AM113=0,0,1)) -> 0
A114: 24 | B114: Save on Energy Home Assistance Program | C114: Verified | AM114: =SUM(Y114:AL114) -> 0 | AN114: =IF(AM114=1,0,IF(AM114=0,0,1)) -> 0
B115: Adjustment to 2015 savings | C115: True-up | Y115: =Y114 -> 0 | Z115: =Z114 -> 0 | AA115: =AA114 -> 0 | AB115: =AB114 -> 0 | AC115: =AC114 -> 0 | AD115: =AD114 -> 0 | AE115: =AE114 -> 0 | AF115: =AF114 -> 0 | AG115: =AG114 -> 0 | AH115: =AH114 -> 0 | AI115: =AI114 -> 0 | AJ115: =AJ114 -> 0 | AK115: =AK114 -> 0 | AL115: =AL114 -> 0 | AN115: =IF(AM115=1,0,IF(AM115=0,0,1)) -> 0
AN116: =IF(AM116=1,0,IF(AM116=0,0,1)) -> 0
B117: Non-Residential Province-Wide Programs | AN117: =IF(AM117=1,0,IF(AM117=0,0,1)) -> 0
A118: 25 | B118: Save on Energy Audit Funding Program | C118: Verified | N118: 12 | AM118: =SUM(Y118:AL118) -> 0 | AN118: =IF(AM118=1,0,IF(AM118=0,0,1)) -> 0
B119: Adjustment to 2015 savings | C119: True-up | N119: =N118 -> 12 | Y119: =Y118 -> 0 | Z119: =Z118 -> 0 | AA119: =AA118 -> 0 | AB119: =AB118 -> 0 | AC119: =AC118 -> 0 | AD119: =AD118 -> 0 | AE119: =AE118 -> 0 | AF119: =AF118 -> 0 | AG119: =AG118 -> 0 | AH119: =AH118 -> 0 | AI119: =AI118 -> 0 | AJ119: =AJ118 -> 0 | AK119: =AK118 -> 0 | AL119: =AL118 -> 0 | AN119: =IF(AM119=1,0,IF(AM119=0,0,1)) -> 0
AN120: =IF(AM120=1,0,IF(AM120=0,0,1)) -> 0
A121: 26 | B121: Save on Energy Retrofit Program | C121: Verified | N121: 12 | Y121: 0.015 | Z121: 0.531 | AA121: 0.37 | AB121: 0.084 | AM121: =SUM(Y121:AL121) -> 1 | AN121: =IF(AM121=1,0,IF(AM121=0,0,1)) -> 0
B122: Adjustment to 2015 savings | C122: True-up | D122: 9149 | E122: 9149 | F122: 9149 | G122: 9149 | H122: 9149 | I122: 9149 | J122: =9104+44 -> 9148 | K122: =9104+44 -> 9148 | L122: =9104+44 -> 9148 | M122: =8965+31 -> 8996 | N122: =N121 -> 12 | O122: 814 | P122: 814 | Q122: 814 | R122: 814 | S122: 814 | T122: =814+100 -> 914 | U122: =744+100 -> 844 | V122: =744+100 -> 844 | W122: =744+71 -> 815 | X122: 525 | Y122: =Y121 -> 0.015 | Z122: =Z121 -> 0.531 | AA122: =AA121 -> 0.37 | AB122: =AB121 -> 0.084 | AC122: =AC121 -> 0 | AD122: =AD121 -> 0 | AE122: =AE121 -> 0 | AF122: =AF121 -> 0 | AG122: =AG121 -> 0 | AH122: =AH121 -> 0 | AI122: =AI121 -> 0 | AJ122: =AJ121 -> 0 | AK122: =AK121 -> 0 | AL122: =AL121 -> 0 | AN122: =IF(AM122=1,0,IF(AM122=0,0,1)) -> 0
AN123: =IF(AM123=1,0,IF(AM123=0,0,1)) -> 0
A124: 27 | B124: Save on Energy Small Business Lighting Program | C124: Verified | N124: 12 | AM124: =SUM(Y124:AL124) -> 0 | AN124: =IF(AM124=1,0,IF(AM124=0,0,1)) -> 0
B125: Adjustment to 2015 savings | C125: True-up | N125: =N124 -> 12 | Y125: =Y124 -> 0 | Z125: =Z124 -> 0 | AA125: =AA124 -> 0 | AB125: =AB124 -> 0 | AC125: =AC124 -> 0 | AD125: =AD124 -> 0 | AE125: =AE124 -> 0 | AF125: =AF124 -> 0 | AG125: =AG124 -> 0 | AH125: =AH124 -> 0 | AI125: =AI124 -> 0 | AJ125: =AJ124 -> 0 | AK125: =AK124 -> 0 | AL125: =AL124 -> 0 | AN125: =IF(AM125=1,0,IF(AM125=0,0,1)) -> 0
AN126: =IF(AM126=1,0,IF(AM126=0,0,1)) -> 0
A127: 28 | B127: Save on Energy High Performance New Construction Program | C127: Verified | N127: 12 | AM127: =SUM(Y127:AL127) -> 0 | AN127: =IF(AM127=1,0,IF(AM127=0,0,1)) -> 0
B128: Adjustment to 2015 savings | C128: True-up | N128: =N127 -> 12 | Y128: =Y127 -> 0 | Z128: =Z127 -> 0 | AA128: =AA127 -> 0 | AB128: =AB127 -> 0 | AC128: =AC127 -> 0 | AD128: =AD127 -> 0 | AE128: =AE127 -> 0 | AF128: =AF127 -> 0 | AG128: =AG127 -> 0 | AH128: =AH127 -> 0 | AI128: =AI127 -> 0 | AJ128: =AJ127 -> 0 | AK128: =AK127 -> 0 | AL128: =AL127 -> 0 | AN128: =IF(AM128=1,0,IF(AM128=0,0,1)) -> 0
AN129: =IF(AM129=1,0,IF(AM129=0,0,1)) -> 0
A130: 29 | B130: Save on Energy Existing Building Commissioning Program | C130: Verified | N130: 3 | AM130: =SUM(Y130:AL130) -> 0 | AN130: =IF(AM130=1,0,IF(AM130=0,0,1)) -> 0
B131: Adjustment to 2015 savings | C131: True-up | N131: =N130 -> 3 | Y131: =Y130 -> 0 | Z131: =Z130 -> 0 | AA131: =AA130 -> 0 | AB131: =AB130 -> 0 | AC131: =AC130 -> 0 | AD131: =AD130 -> 0 | AE131: =AE130 -> 0 | AF131: =AF130 -> 0 | AG131: =AG130 -> 0 | AH131: =AH130 -> 0 | AI131: =AI130 -> 0 | AJ131: =AJ130 -> 0 | AK131: =AK130 -> 0 | AL131: =AL130 -> 0 | AN131: =IF(AM131=1,0,IF(AM131=0,0,1)) -> 0
AN132: =IF(AM132=1,0,IF(AM132=0,0,1)) -> 0
A133: 30 | B133: Save on Energy Process & Systems Upgrades Program | C133: Verified | N133: 12 | AM133: =SUM(Y133:AL133) -> 0 | AN133: =IF(AM133=1,0,IF(AM133=0,0,1)) -> 0
B134: Adjustment to 2015 savings | C134: True-up | N134: =N133 -> 12 | Y134: =Y133 -> 0 | Z134: =Z133 -> 0 | AA134: =AA133 -> 0 | AB134: =AB133 -> 0 | AC134: =AC133 -> 0 | AD134: =AD133 -> 0 | AE134: =AE133 -> 0 | AF134: =AF133 -> 0 | AG134: =AG133 -> 0 | AH134: =AH133 -> 0 | AI134: =AI133 -> 0 | AJ134: =AJ133 -> 0 | AK134: =AK133 -> 0 | AL134: =AL133 -> 0 | AN134: =IF(AM134=1,0,IF(AM134=0,0,1)) -> 0
AN135: =IF(AM135=1,0,IF(AM135=0,0,1)) -> 0
A136: 31 | B136: Save on Energy Monitoring & Targeting Program | C136: Verified | N136: 12 | AM136: =SUM(Y136:AL136) -> 0 | AN136: =IF(AM136=1,0,IF(AM136=0,0,1)) -> 0
B137: Adjustment to 2015 savings | C137: True-up | N137: =N136 -> 12 | Y137: =Y136 -> 0 | Z137: =Z136 -> 0 | AA137: =AA136 -> 0 | AB137: =AB136 -> 0 | AC137: =AC136 -> 0 | AD137: =AD136 -> 0 | AE137: =AE136 -> 0 | AF137: =AF136 -> 0 | AG137: =AG136 -> 0 | AH137: =AH136 -> 0 | AI137: =AI136 -> 0 | AJ137: =AJ136 -> 0 | AK137: =AK136 -> 0 | AL137: =AL136 -> 0 | AN137: =IF(AM137=1,0,IF(AM137=0,0,1)) -> 0
AN138: =IF(AM138=1,0,IF(AM138=0,0,1)) -> 0
A139: 32 | B139: Save on Energy Energy Manager Program | C139: Verified | N139: 12 | AM139: =SUM(Y139:AL139) -> 0 | AN139: =IF(AM139=1,0,IF(AM139=0,0,1)) -> 0
B140: Adjustment to 2015 savings | C140: True-up | N140: =N139 -> 12 | Y140: =Y139 -> 0 | Z140: =Z139 -> 0 | AA140: =AA139 -> 0 | AB140: =AB139 -> 0 | AC140: =AC139 -> 0 | AD140: =AD139 -> 0 | AE140: =AE139 -> 0 | AF140: =AF139 -> 0 | AG140: =AG139 -> 0 | AH140: =AH139 -> 0 | AI140: =AI139 -> 0 | AJ140: =AJ139 -> 0 | AK140: =AK139 -> 0 | AL140: =AL139 -> 0 | AN140: =IF(AM140=1,0,IF(AM140=0,0,1)) -> 0
AN141: =IF(AM141=1,0,IF(AM141=0,0,1)) -> 0
B142: Local & Regional Programs | AN142: =IF(AM142=1,0,IF(AM142=0,0,1)) -> 0
A143: 33 | B143: Business Refrigeration Local Program | C143: Verified | N143: 0 | AM143: =SUM(Y143:AL143) -> 0 | AN143: =IF(AM143=1,0,IF(AM143=0,0,1)) -> 0
B144: Adjustment to 2015 savings | C144: True-up | N144: =N143 -> 0 | Y144: =Y143 -> 0 | Z144: =Z143 -> 0 | AA144: =AA143 -> 0 | AB144: =AB143 -> 0 | AC144: =AC143 -> 0 | AD144: =AD143 -> 0 | AE144: =AE143 -> 0 | AF144: =AF143 -> 0 | AG144: =AG143 -> 0 | AH144: =AH143 -> 0 | AI144: =AI143 -> 0 | AJ144: =AJ143 -> 0 | AK144: =AK143 -> 0 | AL144: =AL143 -> 0 | AN144: =IF(AM144=1,0,IF(AM144=0,0,1)) -> 0
AN145: =IF(AM145=1,0,IF(AM145=0,0,1)) -> 0
A146: 34 | B146: First Nation Conservation Local Program | C146: Verified | N146: 0 | AM146: =SUM(Y146:AL146) -> 0 | AN146: =IF(AM146=1,0,IF(AM146=0,0,1)) -> 0
B147: Adjustment to 2015 savings | C147: True-up | N147: =N146 -> 0 | Y147: =Y146 -> 0 | Z147: =Z146 -> 0 | AA147: =AA146 -> 0 | AB147: =AB146 -> 0 | AC147: =AC146 -> 0 | AD147: =AD146 -> 0 | AE147: =AE146 -> 0 | AF147: =AF146 -> 0 | AG147: =AG146 -> 0 | AH147: =AH146 -> 0 | AI147: =AI146 -> 0 | AJ147: =AJ146 -> 0 | AK147: =AK146 -> 0 | AL147: =AL146 -> 0 | AN147: =IF(AM147=1,0,IF(AM147=0,0,1)) -> 0
AN148: =IF(AM148=1,0,IF(AM148=0,0,1)) -> 0
A149: 35 | B149: Social Benchmarking Local Program | C149: Verified | N149: 0 | AM149: =SUM(Y149:AL149) -> 0 | AN149: =IF(AM149=1,0,IF(AM149=0,0,1)) -> 0
B150: Adjustment to 2015 savings | C150: True-up | N150: =N149 -> 0 | Y150: =Y149 -> 0 | Z150: =Z149 -> 0 | AA150: =AA149 -> 0 | AB150: =AB149 -> 0 | AC150: =AC149 -> 0 | AD150: =AD149 -> 0 | AE150: =AE149 -> 0 | AF150: =AF149 -> 0 | AG150: =AG149 -> 0 | AH150: =AH149 -> 0 | AI150: =AI149 -> 0 | AJ150: =AJ149 -> 0 | AK150: =AK149 -> 0 | AL150: =AL149 -> 0 | AN150: =IF(AM150=1,0,IF(AM150=0,0,1)) -> 0
AN151: =IF(AM151=1,0,IF(AM151=0,0,1)) -> 0
B152: Pilot Programs | AN152: =IF(AM152=1,0,IF(AM152=0,0,1)) -> 0
A153: 36 | B153: Enersource Hydro Mississauga Inc. - Performance-Based Conservation Pilot Program - Conservation Fund | C153: Verified | N153: 12 | AM153: =SUM(Y153:AL153) -> 0 | AN153: =IF(AM153=1,0,IF(AM153=0,0,1)) -> 0
B154: Adjustment to 2015 savings | C154: True-up | N154: =N153 -> 12 | Y154: =Y153 -> 0 | Z154: =Z153 -> 0 | AA154: =AA153 -> 0 | AB154: =AB153 -> 0 | AC154: =AC153 -> 0 | AD154: =AD153 -> 0 | AE154: =AE153 -> 0 | AF154: =AF153 -> 0 | AG154: =AG153 -> 0 | AH154: =AH153 -> 0 | AI154: =AI153 -> 0 | AJ154: =AJ153 -> 0 | AK154: =AK153 -> 0 | AL154: =AL153 -> 0 | AN154: =IF(AM154=1,0,IF(AM154=0,0,1)) -> 0
AN155: =IF(AM155=1,0,IF(AM155=0,0,1)) -> 0
A156: 37 | B156: EnWin Utilities Ltd. - Building Optimization Pilot | C156: Verified | N156: 12 | AM156: =SUM(Y156:AL156) -> 0 | AN156: =IF(AM156=1,0,IF(AM156=0,0,1)) -> 0
B157: Adjustment to 2015 savings | C157: True-up | N157: =N156 -> 12 | Y157: =Y156 -> 0 | Z157: =Z156 -> 0 | AA157: =AA156 -> 0 | AB157: =AB156 -> 0 | AC157: =AC156 -> 0 | AD157: =AD156 -> 0 | AE157: =AE156 -> 0 | AF157: =AF156 -> 0 | AG157: =AG156 -> 0 | AH157: =AH156 -> 0 | AI157: =AI156 -> 0 | AJ157: =AJ156 -> 0 | AK157: =AK156 -> 0 | AL157: =AL156 -> 0 | AN157: =IF(AM157=1,0,IF(AM157=0,0,1)) -> 0
AN158: =IF(AM158=1,0,IF(AM158=0,0,1)) -> 0
A159: 38 | B159: EnWin Utilities Ltd. - Re-Invest Pilot | C159: Verified | N159: 12 | AM159: =SUM(Y159:AL159) -> 0 | AN159: =IF(AM159=1,0,IF(AM159=0,0,1)) -> 0
B160: Adjustment to 2015 savings | C160: True-up | N160: =N159 -> 12 | Y160: =Y159 -> 0 | Z160: =Z159 -> 0 | AA160: =AA159 -> 0 | AB160: =AB159 -> 0 | AC160: =AC159 -> 0 | AD160: =AD159 -> 0 | AE160: =AE159 -> 0 | AF160: =AF159 -> 0 | AG160: =AG159 -> 0 | AH160: =AH159 -> 0 | AI160: =AI159 -> 0 | AJ160: =AJ159 -> 0 | AK160: =AK159 -> 0 | AL160: =AL159 -> 0 | AN160: =IF(AM160=1,0,IF(AM160=0,0,1)) -> 0
AN161: =IF(AM161=1,0,IF(AM161=0,0,1)) -> 0
A162: 39 | B162: Horizon Utilities Corporation - ECM Furnace Motor Pilot | C162: Verified | N162: 12 | AM162: =SUM(Y162:AL162) -> 0 | AN162: =IF(AM162=1,0,IF(AM162=0,0,1)) -> 0
B163: Adjustment to 2015 savings | C163: True-up | N163: =N162 -> 12 | Y163: =Y162 -> 0 | Z163: =Z162 -> 0 | AA163: =AA162 -> 0 | AB163: =AB162 -> 0 | AC163: =AC162 -> 0 | AD163: =AD162 -> 0 | AE163: =AE162 -> 0 | AF163: =AF162 -> 0 | AG163: =AG162 -> 0 | AH163: =AH162 -> 0 | AI163: =AI162 -> 0 | AJ163: =AJ162 -> 0 | AK163: =AK162 -> 0 | AL163: =AL162 -> 0 | AN163: =IF(AM163=1,0,IF(AM163=0,0,1)) -> 0
AN164: =IF(AM164=1,0,IF(AM164=0,0,1)) -> 0
A165: 40 | B165: Horizon Utilities Corporation - Social Benchmarking Pilot | C165: Verified | N165: 12 | AM165: =SUM(Y165:AL165) -> 0 | AN165: =IF(AM165=1,0,IF(AM165=0,0,1)) -> 0
B166: Adjustment to 2015 savings | C166: True-up | N166: =N165 -> 12 | Y166: =Y165 -> 0 | Z166: =Z165 -> 0 | AA166: =AA165 -> 0 | AB166: =AB165 -> 0 | AC166: =AC165 -> 0 | AD166: =AD165 -> 0 | AE166: =AE165 -> 0 | AF166: =AF165 -> 0 | AG166: =AG165 -> 0 | AH166: =AH165 -> 0 | AI166: =AI165 -> 0 | AJ166: =AJ165 -> 0 | AK166: =AK165 -> 0 | AL166: =AL165 -> 0 | AN166: =IF(AM166=1,0,IF(AM166=0,0,1)) -> 0
AN167: =IF(AM167=1,0,IF(AM167=0,0,1)) -> 0
A168: 41 | B168: Hydro Ottawa Limited - Conservation Voltage Regulation (CVR) Leveraging AMI Data Pilot | C168: Verified | N168: 12 | AM168: =SUM(Y168:AL168) -> 0 | AN168: =IF(AM168=1,0,IF(AM168=0,0,1)) -> 0
B169: Adjustment to 2015 savings | C169: True-up | N169: =N168 -> 12 | Y169: =Y168 -> 0 | Z169: =Z168 -> 0 | AA169: =AA168 -> 0 | AB169: =AB168 -> 0 | AC169: =AC168 -> 0 | AD169: =AD168 -> 0 | AE169: =AE168 -> 0 | AF169: =AF168 -> 0 | AG169: =AG168 -> 0 | AH169: =AH168 -> 0 | AI169: =AI168 -> 0 | AJ169: =AJ168 -> 0 | AK169: =AK168 -> 0 | AL169: =AL168 -> 0 | AN169: =IF(AM169=1,0,IF(AM169=0,0,1)) -> 0
AN170: =IF(AM170=1,0,IF(AM170=0,0,1)) -> 0
A171: 42 | B171: Hydro Ottawa Limited - Residential Demand Response Wi-Fi Thermostat Pilot | C171: Verified | AM171: =SUM(Y171:AL171) -> 0 | AN171: =IF(AM171=1,0,IF(AM171=0,0,1)) -> 0
B172: Adjustment to 2015 savings | C172: True-up | Y172: =Y171 -> 0 | Z172: =Z171 -> 0 | AA172: =AA171 -> 0 | AB172: =AB171 -> 0 | AC172: =AC171 -> 0 | AD172: =AD171 -> 0 | AE172: =AE171 -> 0 | AF172: =AF171 -> 0 | AG172: =AG171 -> 0 | AH172: =AH171 -> 0 | AI172: =AI171 -> 0 | AJ172: =AJ171 -> 0 | AK172: =AK171 -> 0 | AL172: =AL171 -> 0 | AN172: =IF(AM172=1,0,IF(AM172=0,0,1)) -> 0
AN173: =IF(AM173=1,0,IF(AM173=0,0,1)) -> 0
A174: 43 | B174: Kitchener-Wilmot Hydro Inc. - Pilot - DCKV | C174: Verified | N174: 12 | AM174: =SUM(Y174:AL174) -> 0 | AN174: =IF(AM174=1,0,IF(AM174=0,0,1)) -> 0
B175: Adjustment to 2015 savings | C175: True-up | N175: =N174 -> 12 | Y175: =Y174 -> 0 | Z175: =Z174 -> 0 | AA175: =AA174 -> 0 | AB175: =AB174 -> 0 | AC175: =AC174 -> 0 | AD175: =AD174 -> 0 | AE175: =AE174 -> 0 | AF175: =AF174 -> 0 | AG175: =AG174 -> 0 | AH175: =AH174 -> 0 | AI175: =AI174 -> 0 | AJ175: =AJ174 -> 0 | AK175: =AK174 -> 0 | AL175: =AL174 -> 0 | AN175: =IF(AM175=1,0,IF(AM175=0,0,1)) -> 0
AN176: =IF(AM176=1,0,IF(AM176=0,0,1)) -> 0
A177: 44 | B177: Niagara-on-the-Lake Hydro Inc. - Direct Install Energy Efficiency Measures for the Agricultural Sector | C177: Verified | N177: 12 | AM177: =SUM(Y177:AL177) -> 0 | AN177: =IF(AM177=1,0,IF(AM177=0,0,1)) -> 0
B178: Adjustment to 2015 savings | C178: True-up | N178: =N177 -> 12 | Y178: =Y177 -> 0 | Z178: =Z177 -> 0 | AA178: =AA177 -> 0 | AB178: =AB177 -> 0 | AC178: =AC177 -> 0 | AD178: =AD177 -> 0 | AE178: =AE177 -> 0 | AF178: =AF177 -> 0 | AG178: =AG177 -> 0 | AH178: =AH177 -> 0 | AI178: =AI177 -> 0 | AJ178: =AJ177 -> 0 | AK178: =AK177 -> 0 | AL178: =AL177 -> 0 | AN178: =IF(AM178=1,0,IF(AM178=0,0,1)) -> 0
AN179: =IF(AM179=1,0,IF(AM179=0,0,1)) -> 0
A180: 45 | B180: Oakville Hydro Electricity Distribution Inc. - Direct Install - Hydronic | C180: Verified | N180: 12 | AM180: =SUM(Y180:AL180) -> 0 | AN180: =IF(AM180=1,0,IF(AM180=0,0,1)) -> 0
B181: Adjustment to 2015 savings | C181: True-up | N181: =N180 -> 12 | Y181: =Y180 -> 0 | Z181: =Z180 -> 0 | AA181: =AA180 -> 0 | AB181: =AB180 -> 0 | AC181: =AC180 -> 0 | AD181: =AD180 -> 0 | AE181: =AE180 -> 0 | AF181: =AF180 -> 0 | AG181: =AG180 -> 0 | AH181: =AH180 -> 0 | AI181: =AI180 -> 0 | AJ181: =AJ180 -> 0 | AK181: =AK180 -> 0 | AL181: =AL180 -> 0 | AN181: =IF(AM181=1,0,IF(AM181=0,0,1)) -> 0
AN182: =IF(AM182=1,0,IF(AM182=0,0,1)) -> 0
A183: 46 | B183: Oakville Hydro Electricity Distribution Inc. - Direct Install - RTU Controls | C183: Verified | N183: 12 | AM183: =SUM(Y183:AL183) -> 0 | AN183: =IF(AM183=1,0,IF(AM183=0,0,1)) -> 0
B184: Adjustment to 2015 savings | C184: True-up | N184: =N183 -> 12 | Y184: =Y183 -> 0 | Z184: =Z183 -> 0 | AA184: =AA183 -> 0 | AB184: =AB183 -> 0 | AC184: =AC183 -> 0 | AD184: =AD183 -> 0 | AE184: =AE183 -> 0 | AF184: =AF183 -> 0 | AG184: =AG183 -> 0 | AH184: =AH183 -> 0 | AI184: =AI183 -> 0 | AJ184: =AJ183 -> 0 | AK184: =AK183 -> 0 | AL184: =AL183 -> 0 | AN184: =IF(AM184=1,0,IF(AM184=0,0,1)) -> 0
AN185: =IF(AM185=1,0,IF(AM185=0,0,1)) -> 0
A186: 47 | B186: Toronto Hydro-Electric System Limited - Direct Install - Hydronic (Pilot Savings) | C186: Verified | N186: 12 | AM186: =SUM(Y186:AL186) -> 0 | AN186: =IF(AM186=1,0,IF(AM186=0,0,1)) -> 0
B187: Adjustment to 2015 savings | C187: True-up | N187: =N186 -> 12 | Y187: =Y186 -> 0 | Z187: =Z186 -> 0 | AA187: =AA186 -> 0 | AB187: =AB186 -> 0 | AC187: =AC186 -> 0 | AD187: =AD186 -> 0 | AE187: =AE186 -> 0 | AF187: =AF186 -> 0 | AG187: =AG186 -> 0 | AH187: =AH186 -> 0 | AI187: =AI186 -> 0 | AJ187: =AJ186 -> 0 | AK187: =AK186 -> 0 | AL187: =AL186 -> 0 | AN187: =IF(AM187=1,0,IF(AM187=0,0,1)) -> 0
AN188: =IF(AM188=1,0,IF(AM188=0,0,1)) -> 0
A189: 48 | B189: Toronto Hydro-Electric System Limited - Direct Install - RTU Controls (Pilot Savings) | C189: Verified | N189: 12 | AM189: =SUM(Y189:AL189) -> 0 | AN189: =IF(AM189=1,0,IF(AM189=0,0,1)) -> 0
B190: Adjustment to 2015 savings | C190: True-up | N190: =N189 -> 12 | Y190: =Y189 -> 0 | Z190: =Z189 -> 0 | AA190: =AA189 -> 0 | AB190: =AB189 -> 0 | AC190: =AC189 -> 0 | AD190: =AD189 -> 0 | AE190: =AE189 -> 0 | AF190: =AF189 -> 0 | AG190: =AG189 -> 0 | AH190: =AH189 -> 0 | AI190: =AI189 -> 0 | AJ190: =AJ189 -> 0 | AK190: =AK189 -> 0 | AL190: =AL189 -> 0 | AN190: =IF(AM190=1,0,IF(AM190=0,0,1)) -> 0
AN191: =IF(AM191=1,0,IF(AM191=0,0,1)) -> 0
A192: 49 | B192: Toronto Hydro-Electric System Limited - PFP - Large (Pilot Savings) | C192: Verified | N192: 12 | AM192: =SUM(Y192:AL192) -> 0 | AN192: =IF(AM192=1,0,IF(AM192=0,0,1)) -> 0
B193: Adjustment to 2015 savings | C193: True-up | N193: =N192 -> 12 | Y193: =Y192 -> 0 | Z193: =Z192 -> 0 | AA193: =AA192 -> 0 | AB193: =AB192 -> 0 | AC193: =AC192 -> 0 | AD193: =AD192 -> 0 | AE193: =AE192 -> 0 | AF193: =AF192 -> 0 | AG193: =AG192 -> 0 | AH193: =AH192 -> 0 | AI193: =AI192 -> 0 | AJ193: =AJ192 -> 0 | AK193: =AK192 -> 0 | AL193: =AL192 -> 0 | AN193: =IF(AM193=1,0,IF(AM193=0,0,1)) -> 0
AN194: =IF(AM194=1,0,IF(AM194=0,0,1)) -> 0
B195: Actual CDM Savings in 2015 | D195: =SUM(D38:D193) -> 8934642 | O195: =SUM(O38:O193) -> 2295 | Y195: =IF(Y36="kWh",SUMPRODUCT(D38:D193,Y38:Y193)) -> 1158443.7 | Z195: =IF(Z36="kWh",SUMPRODUCT(D38:D193,Z38:Z193)) -> 2546250.275 | AA195: =IF(AA36="kw",SUMPRODUCT(N38:N193,O38:O193,AA38:AA193),SUMPRODUCT(D38:D193,AA38:AA193)) -> 2306913.811 | AB195: =IF(AB36="kw",SUMPRODUCT(N38:N193,O38:O193,AB38:AB193),SUMPRODUCT(D38:D193,AB38:AB193)) -> 2923034.213 | AC195: =IF(AC36="kw",SUMPRODUCT(N38:N193,O38:O193,AC38:AC193),SUMPRODUCT(D38:D193,AC38:AC193)) -> 0 | AD195: =IF(AD36="kw",SUMPRODUCT(N38:N193,O38:O193,AD38:AD193),SUMPRODUCT(D38:D193,AD38:AD193)) -> 0 | AE195: =IF(AE36="kw",SUMPRODUCT(N38:N193,O38:O193,AE38:AE193),SUMPRODUCT(D38:D193,AE38:AE193)) -> 0 | AF195: =IF(AF36="kw",SUMPRODUCT(N38:N193,O38:O193,AF38:AF193),SUMPRODUCT(D38:D193,AF38:AF193)) -> 0 | AG195: =IF(AG36="kw",SUMPRODUCT(N38:N193,O38:O193,AG38:AG193),SUMPRODUCT(D38:D193,AG38:AG193)) -> 0 | AH195: =IF(AH36="kw",SUMPRODUCT(N38:N193,O38:O193,AH38:AH193),SUMPRODUCT(D38:D193,AH38:AH193)) -> 0 | AI195: =IF(AI36="kw",SUMPRODUCT(N38:N193,O38:O193,AI38:AI193),SUMPRODUCT(D38:D193,AI38:AI193)) -> 0 | AJ195: =IF(AJ36="kw",SUMPRODUCT(N38:N193,O38:O193,AJ38:AJ193),SUMPRODUCT(D38:D193,AJ38:AJ193)) -> 0 | AK195: =IF(AK36="kw",SUMPRODUCT(N38:N193,O38:O193,AK38:AK193),SUMPRODUCT(D38:D193,AK38:AK193)) -> 0 | AL195: =IF(AL36="kw",SUMPRODUCT(N38:N193,O38:O193,AL38:AL193),SUMPRODUCT(D38:D193,AL38:AL193)) -> 0 | AN195: =IF(AM195=1,0,IF(AM195=0,0,1)) -> 0
B196: Forecast CDM Savings in 2015 | Y196: 0 | Z196: 0 | AA196: 0 | AB196: 0 | AC196: 0 | AD196: 0 | AE196: 0 | AF196: 0 | AG196: 0 | AH196: 0 | AI196: 0 | AJ196: 0 | AK196: 0 | AL196: 0 | AN196: =IF(AM196=1,0,IF(AM196=0,0,1)) -> 0
AN197: =IF(AM197=1,0,IF(AM197=0,0,1)) -> 0
B198: Distribution Rate in 2015 | Y198: 1 | Z198: 1 | AA198: 1 | AB198: 1 | AC198: 1 | AD198: 1 | AE198: 0 | AF198: 0 | AG198: 0 | AH198: 0 | AI198: 0 | AJ198: 0 | AK198: 0 | AL198: 0 | AN198: =IF(AM198=1,0,IF(AM198=0,0,1)) -> 0
B199: Lost Revenue in 2015 from 2011 programs | Y199: ='4. 2011-2014 LRAM'!AE138*Y198 -> 475421.658 | Z199: ='4. 2011-2014 LRAM'!AF138*Z198 -> 779630.2005 | AA199: ='4. 2011-2014 LRAM'!AG138*AA198 -> 1287502.617 | AB199: ='4. 2011-2014 LRAM'!AH138*AB198 -> 996636.6028 | AC199: ='4. 2011-2014 LRAM'!AI138*AC198 -> 0 | AD199: ='4. 2011-2014 LRAM'!AJ138*AD198 -> 0 | AE199: ='4. 2011-2014 LRAM'!AK138*AE198 -> 0 | AF199: ='4. 2011-2014 LRAM'!AL138*AF198 -> 0 | AG199: ='4. 2011-2014 LRAM'!AM138*AG198 -> 0 | AH199: ='4. 2011-2014 LRAM'!AN138*AH198 -> 0 | AI199: ='4. 2011-2014 LRAM'!AO138*AI198 -> 0 | AJ199: ='4. 2011-2014 LRAM'!AP138*AJ198 -> 0 | AK199: ='4. 2011-2014 LRAM'!AQ138*AK198 -> 0 | AL199: ='4. 2011-2014 LRAM'!AR138*AL198 -> 0 | AM199: =SUM(Y199:AL199) -> 3539191.078 | AN199: =IF(AM199=1,0,IF(AM199=0,0,1)) -> 1
B200: Lost Revenue in 2015 from 2012 programs | Y200: ='4. 2011-2014 LRAM'!AE270*Y198 -> 338452.827 | Z200: ='4. 2011-2014 LRAM'!AF270*Z198 -> 1048076.447 | AA200: ='4. 2011-2014 LRAM'!AG270*AA198 -> 2372660.533 | AB200: ='4. 2011-2014 LRAM'!AH270*AB198 -> 716321.4376 | AC200: ='4. 2011-2014 LRAM'!AI270*AC198 -> 27434.29403 | AD200: ='4. 2011-2014 LRAM'!AJ270*AD198 -> 0 | AE200: ='4. 2011-2014 LRAM'!AK270*AE198 -> 0 | AF200: ='4. 2011-2014 LRAM'!AL270*AF198 -> 0 | AG200: ='4. 2011-2014 LRAM'!AM270*AG198 -> 0 | AH200: ='4. 2011-2014 LRAM'!AN270*AH198 -> 0 | AI200: ='4. 2011-2014 LRAM'!AO270*AI198 -> 0 | AJ200: ='4. 2011-2014 LRAM'!AP270*AJ198 -> 0 | AK200: ='4. 2011-2014 LRAM'!AQ270*AK198 -> 0 | AL200: ='4. 2011-2014 LRAM'!AR270*AL198 -> 0 | AM200: =SUM(Y200:AL200) -> 4502945.538 | AN200: =IF(AM200=1,0,IF(AM200=0,0,1)) -> 1
B201: Lost Revenue in 2015 from 2013 programs | Y201: ='4. 2011-2014 LRAM'!AE402*Y198 -> 495857.9444 | Z201: ='4. 2011-2014 LRAM'!AF402*Z198 -> 428400.1161 | AA201: ='4. 2011-2014 LRAM'!AG402*AA198 -> 3320878.514 | AB201: ='4. 2011-2014 LRAM'!AH402*AB198 -> 15163.39447 | AC201: ='4. 2011-2014 LRAM'!AI402*AC198 -> 1675268.246 | AD201: ='4. 2011-2014 LRAM'!AJ402*AD198 -> 0 | AE201: ='4. 2011-2014 LRAM'!AK402*AE198 -> 0 | AF201: ='4. 2011-2014 LRAM'!AL402*AF198 -> 0 | AG201: ='4. 2011-2014 LRAM'!AM402*AG198 -> 0 | AH201: ='4. 2011-2014 LRAM'!AN402*AH198 -> 0 | AI201: ='4. 2011-2014 LRAM'!AO402*AI198 -> 0 | AJ201: ='4. 2011-2014 LRAM'!AP402*AJ198 -> 0 | AK201: ='4. 2011-2014 LRAM'!AQ402*AK198 -> 0 | AL201: ='4. 2011-2014 LRAM'!AR402*AL198 -> 0 | AM201: =SUM(Y201:AL201) -> 5935568.215 | AN201: =IF(AM201=1,0,IF(AM201=0,0,1)) -> 1
B202: Lost Revenue in 2015 from 2014 programs | Y202: ='4. 2011-2014 LRAM'!AE535*Y198 -> 1043234.064 | Z202: ='4. 2011-2014 LRAM'!AF535*Z198 -> 812351.936 | AA202: ='4. 2011-2014 LRAM'!AG535*AA198 -> 1615728.156 | AB202: ='4. 2011-2014 LRAM'!AH535*AB198 -> 125139.4608 | AC202: ='4. 2011-2014 LRAM'!AI535*AC198 -> 0 | AD202: ='4. 2011-2014 LRAM'!AJ535*AD198 -> 0 | AE202: ='4. 2011-2014 LRAM'!AK535*AE198 -> 0 | AF202: ='4. 2011-2014 LRAM'!AL535*AF198 -> 0 | AG202: ='4. 2011-2014 LRAM'!AM535*AG198 -> 0 | AH202: ='4. 2011-2014 LRAM'!AN535*AH198 -> 0 | AI202: ='4. 2011-2014 LRAM'!AO535*AI198 -> 0 | AJ202: ='4. 2011-2014 LRAM'!AP535*AJ198 -> 0 | AK202: ='4. 2011-2014 LRAM'!AQ535*AK198 -> 0 | AL202: ='4. 2011-2014 LRAM'!AR535*AL198 -> 0 | AM202: =SUM(Y202:AL202) -> 3596453.616 | AN202: =IF(AM202=1,0,IF(AM202=0,0,1)) -> 1
B203: Lost Revenue in 2015 from 2015 programs | Y203: =Y195*Y198 -> 1158443.7 | Z203: =Z195*Z198 -> 2546250.275 | AA203: =AA195*AA198 -> 2306913.811 | AB203: =AB195*AB198 -> 2923034.213 | AC203: =AC195*AC198 -> 0 | AD203: =AD195*AD198 -> 0 | AE203: =AE195*AE198 -> 0 | AF203: =AF195*AF198 -> 0 | AG203: =AG195*AG198 -> 0 | AH203: =AH195*AH198 -> 0 | AI203: =AI195*AI198 -> 0 | AJ203: =AJ195*AJ198 -> 0 | AK203: =AK195*AK198 -> 0 | AL203: =AL195*AL198 -> 0 | AM203: =SUM(Y203:AL203) -> 8934642 | AN203: =IF(AM203=1,0,IF(AM203=0,0,1)) -> 1
B204: Total Lost Revenues in 2015 | Y204: =SUM(Y199:Y203) -> 3511410.193 | Z204: =SUM(Z199:Z203) -> 5614708.975 | AA204: =SUM(AA199:AA203) -> 10903683.63 | AB204: =SUM(AB199:AB203) -> 4776295.109 | AC204: =SUM(AC199:AC203) -> 1702702.54 | AD204: =SUM(AD199:AD203) -> 0 | AE204: =SUM(AE199:AE203) -> 0 | AF204: =SUM(AF199:AF203) -> 0 | AG204: =SUM(AG199:AG203) -> 0 | AH204: =SUM(AH199:AH203) -> 0 | AI204: =SUM(AI199:AI203) -> 0 | AJ204: =SUM(AJ199:AJ203) -> 0 | AK204: =SUM(AK199:AK203) -> 0 | AL204: =SUM(AL199:AL203) -> 0 | AM204: =SUM(AM199:AM203) -> 26508800.45 | AN204: =IF(AM204=1,0,IF(AM204=0,0,1)) -> 1
B205: Forecast Lost Revenues in 2015 | Y205: =Y196*Y198 -> 0 | Z205: =Z196*Z198 -> 0 | AA205: =AA196*AA198 -> 0 | AB205: =AB196*AB198 -> 0 | AC205: =AC196*AC198 -> 0 | AD205: =AD196*AD198 -> 0 | AE205: =AE196*AE198 -> 0 | AF205: =AF196*AF198 -> 0 | AG205: =AG196*AG198 -> 0 | AH205: =AH196*AH198 -> 0 | AI205: =AI196*AI198 -> 0 | AJ205: =AJ196*AJ198 -> 0 | AK205: =AK196*AK198 -> 0 | AL205: =AL196*AL198 -> 0 | AM205: =SUM(Y205:AL205) -> 0 | AN205: =IF(AM205=1,0,IF(AM205=0,0,1)) -> 0
B206: LRAMVA in 2015 | AM206: =AM204-AM205 -> 26508800.45 | AN206: =IF(AM206=1,0,IF(AM206=0,0,1)) -> 1
AN207: =IF(AM207=1,0,IF(AM207=0,0,1)) -> 0
B208: 2015 Savings Persisting in 2016 | Y208: =SUMPRODUCT(E38:E193,Y38:Y193) -> 1141796.7 | Z208: =SUMPRODUCT(E38:E193,Z38:Z193) -> 2548723.075 | AA208: =IF(AA36="kw",SUMPRODUCT(N38:N193,P38:P193,AA38:AA193),SUMPRODUCT(E38:E193,AA38:AA193)) -> 2307430.012 | AB208: =IF(AB36="kw",SUMPRODUCT(N38:N193,P38:P193,AB38:AB193),SUMPRODUCT(E38:E193,AB38:AB193)) -> 2923034.213 | AC208: =IF(AC36="kw",SUMPRODUCT(N38:N193,P38:P193,AC38:AC193),SUMPRODUCT(E38:E193,AC38:AC193)) -> 0 | AD208: =IF(AD36="kw",SUMPRODUCT(N38:N193,P38:P193,AD38:AD193),SUMPRODUCT(E38:E193,AD38:AD193)) -> 0 | AE208: =IF(AE36="kw",SUMPRODUCT(N38:N193,P38:P193,AE38:AE193),SUMPRODUCT(E38:E193,AE38:AE193)) -> 0 | AF208: =IF(AF36="kw",SUMPRODUCT(N38:N193,P38:P193,AF38:AF193),SUMPRODUCT(E38:E193,AF38:AF193)) -> 0 | AG208: =IF(AG36="kw",SUMPRODUCT(N38:N193,P38:P193,AG38:AG193),SUMPRODUCT(E38:E193,AG38:AG193)) -> 0 | AH208: =IF(AH36="kw",SUMPRODUCT(N38:N193,P38:P193,AH38:AH193),SUMPRODUCT(E38:E193,AH38:AH193)) -> 0 | AI208: =IF(AI36="kw",SUMPRODUCT(N38:N193,P38:P193,AI38:AI193),SUMPRODUCT(E38:E193,AI38:AI193)) -> 0 | AJ208: =IF(AJ36="kw",SUMPRODUCT(N38:N193,P38:P193,AJ38:AJ193),SUMPRODUCT(E38:E193,AJ38:AJ193)) -> 0 | AK208: =IF(AK36="kw",SUMPRODUCT(N38:N193,P38:P193,AK38:AK193),SUMPRODUCT(E38:E193,AK38:AK193)) -> 0 | AL208: =IF(AL36="kw",SUMPRODUCT(N38:N193,P38:P193,AL38:AL193),SUMPRODUCT(E38:E193,AL38:AL193)) -> 0 | AN208: =IF(AM208=1,0,IF(AM208=0,0,1)) -> 0
B209: 2015 Savings Persisting in 2017 | Y209: =SUMPRODUCT(F38:F193,Y38:Y193) -> 1140893.67 | Z209: =SUMPRODUCT(F38:F193,Z38:Z193) -> 2551904.204 | AA209: =IF(AA36="kw",SUMPRODUCT(N38:N193,Q38:Q193,AA38:AA193),SUMPRODUCT(F38:F193,AA38:AA193)) -> 2307761.707 | AB209: =IF(AB36="kw",SUMPRODUCT(N38:N193,Q38:Q193,AB38:AB193),SUMPRODUCT(F38:F193,AB38:AB193)) -> 2920499.419 | AC209: =IF(AC36="kw",SUMPRODUCT(N38:N193,Q38:Q193,AC38:AC193),SUMPRODUCT(F38:F193,AC38:AC193)) -> 0 | AD209: =IF(AD36="kw",SUMPRODUCT(N38:N193,Q38:Q193,AD38:AD193),SUMPRODUCT(F38:F193,AD38:AD193)) -> 0 | AE209: =IF(AE36="kw",SUMPRODUCT(N38:N193,Q38:Q193,AE38:AE193),SUMPRODUCT(F38:F193,AE38:AE193)) -> 0 | AF209: =IF(AF36="kw",SUMPRODUCT(N38:N193,Q38:Q193,AF38:AF193),SUMPRODUCT(F38:F193,AF38:AF193)) -> 0 | AG209: =IF(AG36="kw",SUMPRODUCT(N38:N193,Q38:Q193,AG38:AG193),SUMPRODUCT(F38:F193,AG38:AG193)) -> 0 | AH209: =IF(AH36="kw",SUMPRODUCT(N38:N193,Q38:Q193,AH38:AH193),SUMPRODUCT(F38:F193,AH38:AH193)) -> 0 | AI209: =IF(AI36="kw",SUMPRODUCT(N38:N193,Q38:Q193,AI38:AI193),SUMPRODUCT(F38:F193,AI38:AI193)) -> 0 | AJ209: =IF(AJ36="kw",SUMPRODUCT(N38:N193,Q38:Q193,AJ38:AJ193),SUMPRODUCT(F38:F193,AJ38:AJ193)) -> 0 | AK209: =IF(AK36="kw",SUMPRODUCT(N38:N193,Q38:Q193,AK38:AK193),SUMPRODUCT(F38:F193,AK38:AK193)) -> 0 | AL209: =IF(AL36="kw",SUMPRODUCT(N38:N193,Q38:Q193,AL38:AL193),SUMPRODUCT(F38:F193,AL38:AL193)) -> 0 | AN209: =IF(AM209=1,0,IF(AM209=0,0,1)) -> 0
B210: 2015 Savings Persisting in 2018 | Y210: =SUMPRODUCT(G38:G193,Y38:Y193) -> 1140895.585 | Z210: =SUMPRODUCT(G38:G193,Z38:Z193) -> 2584529.978 | AA210: =IF(AA36="kw",SUMPRODUCT(N38:N193,R38:R193,AA38:AA193),SUMPRODUCT(G38:G193,AA38:AA193)) -> 2329902.335 | AB210: =IF(AB36="kw",SUMPRODUCT(N38:N193,R38:R193,AB38:AB193),SUMPRODUCT(G38:G193,AB38:AB193)) -> 2923477.102 | AC210: =IF(AC36="kw",SUMPRODUCT(N38:N193,R38:R193,AC38:AC193),SUMPRODUCT(G38:G193,AC38:AC193)) -> 0 | AD210: =IF(AD36="kw",SUMPRODUCT(N38:N193,R38:R193,AD38:AD193),SUMPRODUCT(G38:G193,AD38:AD193)) -> 0 | AE210: =IF(AE36="kw",SUMPRODUCT(N38:N193,R38:R193,AE38:AE193),SUMPRODUCT(G38:G193,AE38:AE193)) -> 0 | AF210: =IF(AF36="kw",SUMPRODUCT(N38:N193,R38:R193,AF38:AF193),SUMPRODUCT(G38:G193,AF38:AF193)) -> 0 | AG210: =IF(AG36="kw",SUMPRODUCT(N38:N193,R38:R193,AG38:AG193),SUMPRODUCT(G38:G193,AG38:AG193)) -> 0 | AH210: =IF(AH36="kw",SUMPRODUCT(N38:N193,R38:R193,AH38:AH193),SUMPRODUCT(G38:G193,AH38:AH193)) -> 0 | AI210: =IF(AI36="kw",SUMPRODUCT(N38:N193,R38:R193,AI38:AI193),SUMPRODUCT(G38:G193,AI38:AI193)) -> 0 | AJ210: =IF(AJ36="kw",SUMPRODUCT(N38:N193,R38:R193,AJ38:AJ193),SUMPRODUCT(G38:G193,AJ38:AJ193)) -> 0 | AK210: =IF(AK36="kw",SUMPRODUCT(N38:N193,R38:R193,AK38:AK193),SUMPRODUCT(G38:G193,AK38:AK193)) -> 0 | AL210: =IF(AL36="kw",SUMPRODUCT(N38:N193,R38:R193,AL38:AL193),SUMPRODUCT(G38:G193,AL38:AL193)) -> 0 | AN210: =IF(AM210=1,0,IF(AM210=0,0,1)) -> 0
B211: 2015 Savings Persisting in 2019 | Y211: =SUMPRODUCT(H38:H193,Y38:Y193) -> 1137703.585 | Z211: =SUMPRODUCT(H38:H193,Z38:Z193) -> 2584529.978 | AA211: =IF(AA36="kw",SUMPRODUCT(N38:N193,S38:S193,AA38:AA193),SUMPRODUCT(H38:H193,AA38:AA193)) -> 2329902.335 | AB211: =IF(AB36="kw",SUMPRODUCT(N38:N193,S38:S193,AB38:AB193),SUMPRODUCT(H38:H193,AB38:AB193)) -> 2923477.102 | AC211: =IF(AC36="kw",SUMPRODUCT(N38:N193,S38:S193,AC38:AC193),SUMPRODUCT(H38:H193,AC38:AC193)) -> 0 | AD211: =IF(AD36="kw",SUMPRODUCT(N38:N193,S38:S193,AD38:AD193),SUMPRODUCT(H38:H193,AD38:AD193)) -> 0 | AE211: =IF(AE36="kw",SUMPRODUCT(N38:N193,S38:S193,AE38:AE193),SUMPRODUCT(H38:H193,AE38:AE193)) -> 0 | AF211: =IF(AF36="kw",SUMPRODUCT(N38:N193,S38:S193,AF38:AF193),SUMPRODUCT(H38:H193,AF38:AF193)) -> 0 | AG211: =IF(AG36="kw",SUMPRODUCT(N38:N193,S38:S193,AG38:AG193),SUMPRODUCT(H38:H193,AG38:AG193)) -> 0 | AH211: =IF(AH36="kw",SUMPRODUCT(N38:N193,S38:S193,AH38:AH193),SUMPRODUCT(H38:H193,AH38:AH193)) -> 0 | AI211: =IF(AI36="kw",SUMPRODUCT(N38:N193,S38:S193,AI38:AI193),SUMPRODUCT(H38:H193,AI38:AI193)) -> 0 | AJ211: =IF(AJ36="kw",SUMPRODUCT(N38:N193,S38:S193,AJ38:AJ193),SUMPRODUCT(H38:H193,AJ38:AJ193)) -> 0 | AK211: =IF(AK36="kw",SUMPRODUCT(N38:N193,S38:S193,AK38:AK193),SUMPRODUCT(H38:H193,AK38:AK193)) -> 0 | AL211: =IF(AL36="kw",SUMPRODUCT(N38:N193,S38:S193,AL38:AL193),SUMPRODUCT(H38:H193,AL38:AL193)) -> 0 | AN211: =IF(AM211=1,0,IF(AM211=0,0,1)) -> 0
B212: 2015 Savings Persisting in 2020 | Y212: =SUMPRODUCT(I$38:I$193,Y$38:Y$193) -> 1131598.585 | Z212: =SUMPRODUCT(I$38:I$193,Z$38:Z$193) -> 2584529.978 | AA212: =IF($AA$36="kw",SUMPRODUCT(N$38:N$193,T$38:T$193,AA$38:AA$193),SUMPRODUCT(I$38:I$193,AA$38:AA$193)) -> 2329902.335 | AB212: =IF($AB$36="kw",SUMPRODUCT(N$38:N$193,T$38:T$193,AB$38:AB$193),SUMPRODUCT(I$38:I$193,AB$38:AB$193)) -> 2923477.102 | AC212: =IF(AC36="kw",SUMPRODUCT(N38:N193,T38:T193,AC38:AC193),SUMPRODUCT(I38:I193,AC38:AC193)) -> 0 | AD212: =IF(AD36="kw",SUMPRODUCT(N38:N193,T38:T193,AD38:AD193),SUMPRODUCT(I38:I193,AD38:AD193)) -> 0 | AE212: =IF(AE36="kw",SUMPRODUCT(N38:N193,T38:T193,AE38:AE193),SUMPRODUCT(I38:I193,AE38:AE193)) -> 0 | AF212: =IF(AF36="kw",SUMPRODUCT(N38:N193,T38:T193,AF38:AF193),SUMPRODUCT(I38:I193,AF38:AF193)) -> 0 | AG212: =IF(AG36="kw",SUMPRODUCT(N38:N193,T38:T193,AG38:AG193),SUMPRODUCT(I38:I193,AG38:AG193)) -> 0 | AH212: =IF(AH36="kw",SUMPRODUCT(N38:N193,T38:T193,AH38:AH193),SUMPRODUCT(I38:I193,AH38:AH193)) -> 0 | AI212: =IF(AI36="kw",SUMPRODUCT(N38:N193,T38:T193,AI38:AI193),SUMPRODUCT(I38:I193,AI38:AI193)) -> 0 | AJ212: =IF(AJ36="kw",SUMPRODUCT(N38:N193,T38:T193,AJ38:AJ193),SUMPRODUCT(I38:I193,AJ38:AJ193)) -> 0 | AK212: =IF(AK36="kw",SUMPRODUCT(N38:N193,T38:T193,AK38:AK193),SUMPRODUCT(I38:I193,AK38:AK193)) -> 0 | AL212: =IF(AL36="kw",SUMPRODUCT(N38:N193,T38:T193,AL38:AL193),SUMPRODUCT(I38:I193,AL38:AL193)) -> 0 | AN212: =IF(AM212=1,0,IF(AM212=0,0,1)) -> 0
B213: 2015 Savings Persisting in 2021 | Y213: =SUMPRODUCT(J$38:J$193,Y$38:Y$193) -> 1130767.41 | Z213: =SUMPRODUCT(J$38:J$193,Z$38:Z$193) -> 2594010.983 | AA213: =IF($AA$36="kw",SUMPRODUCT(N$38:N$193,U$38:U$193,AA$38:AA$193),SUMPRODUCT(J$38:J$193,AA$38:AA$193)) -> 2329509.384 | AB213: =IF($AB$36="kw",SUMPRODUCT(N$38:N$193,U$38:U$193,AB$38:AB$193),SUMPRODUCT(J$38:J$193,AB$38:AB$193)) -> 2891201.224 | AC213: =IF(AC37="kw",SUMPRODUCT(N39:N194,T39:T194,AC39:AC194),SUMPRODUCT(I39:I194,AC39:AC194)) -> 0 | AD213: =IF(AD37="kw",SUMPRODUCT(N39:N194,T39:T194,AD39:AD194),SUMPRODUCT(I39:I194,AD39:AD194)) -> 0 | AE213: =IF(AE37="kw",SUMPRODUCT(N39:N194,T39:T194,AE39:AE194),SUMPRODUCT(I39:I194,AE39:AE194)) -> 0 | AF213: =IF(AF37="kw",SUMPRODUCT(N39:N194,T39:T194,AF39:AF194),SUMPRODUCT(I39:I194,AF39:AF194)) -> 0 | AG213: =IF(AG37="kw",SUMPRODUCT(N39:N194,T39:T194,AG39:AG194),SUMPRODUCT(I39:I194,AG39:AG194)) -> 0 | AH213: =IF(AH37="kw",SUMPRODUCT(N39:N194,T39:T194,AH39:AH194),SUMPRODUCT(I39:I194,AH39:AH194)) -> 0 | AI213: =IF(AI37="kw",SUMPRODUCT(N39:N194,T39:T194,AI39:AI194),SUMPRODUCT(I39:I194,AI39:AI194)) -> 0 | AJ213: =IF(AJ37="kw",SUMPRODUCT(N39:N194,T39:T194,AJ39:AJ194),SUMPRODUCT(I39:I194,AJ39:AJ194)) -> 0 | AK213: =IF(AK37="kw",SUMPRODUCT(N39:N194,T39:T194,AK39:AK194),SUMPRODUCT(I39:I194,AK39:AK194)) -> 0 | AL213: =IF(AL37="kw",SUMPRODUCT(N39:N194,T39:T194,AL39:AL194),SUMPRODUCT(I39:I194,AL39:AL194)) -> 0 | AN213: =IF(AM213=1,0,IF(AM213=0,0,1)) -> 0
B214: 2015 Savings Persisting in 2022 | Y214: =SUMPRODUCT(K$38:K$193,Y$38:Y$193) -> 1130175.41 | Z214: =SUMPRODUCT(K$38:K$193,Z$38:Z$193) -> 2594010.983 | AA214: =IF($AA$36="kw",SUMPRODUCT(N$38:N$193,V$38:V$193,AA$38:AA$193),SUMPRODUCT(K$38:K$193,AA$38:AA$193)) -> 2329509.384 | AB214: =IF($AB$36="kw",SUMPRODUCT(N$38:N$193,V$38:V$193,AB$38:AB$193),SUMPRODUCT(K$38:K$193,AB$38:AB$193)) -> 2891201.224 | AC214: =IF(AC38="kw",SUMPRODUCT(N40:N195,T40:T195,AC40:AC195),SUMPRODUCT(I40:I195,AC40:AC195)) -> 0 | AD214: =IF(AD38="kw",SUMPRODUCT(N40:N195,T40:T195,AD40:AD195),SUMPRODUCT(I40:I195,AD40:AD195)) -> 0 | AE214: =IF(AE38="kw",SUMPRODUCT(N40:N195,T40:T195,AE40:AE195),SUMPRODUCT(I40:I195,AE40:AE195)) -> 0 | AF214: =IF(AF38="kw",SUMPRODUCT(N40:N195,T40:T195,AF40:AF195),SUMPRODUCT(I40:I195,AF40:AF195)) -> 0 | AG214: =IF(AG38="kw",SUMPRODUCT(N40:N195,T40:T195,AG40:AG195),SUMPRODUCT(I40:I195,AG40:AG195)) -> 0 | AH214: =IF(AH38="kw",SUMPRODUCT(N40:N195,T40:T195,AH40:AH195),SUMPRODUCT(I40:I195,AH40:AH195)) -> 0 | AI214: =IF(AI38="kw",SUMPRODUCT(N40:N195,T40:T195,AI40:AI195),SUMPRODUCT(I40:I195,AI40:AI195)) -> 0 | AJ214: =IF(AJ38="kw",SUMPRODUCT(N40:N195,T40:T195,AJ40:AJ195),SUMPRODUCT(I40:I195,AJ40:AJ195)) -> 0 | AK214: =IF(AK38="kw",SUMPRODUCT(N40:N195,T40:T195,AK40:AK195),SUMPRODUCT(I40:I195,AK40:AK195)) -> 0 | AL214: =IF(AL38="kw",SUMPRODUCT(N40:N195,T40:T195,AL40:AL195),SUMPRODUCT(I40:I195,AL40:AL195)) -> 0 | AN214: =IF(AM214=1,0,IF(AM214=0,0,1)) -> 0
B215: 2015 Savings Persisting in 2023 | Y215: =SUMPRODUCT(L$38:L$193,Y$38:Y$193) -> 1122196.56 | Z215: =SUMPRODUCT(L$38:L$193,Z$38:Z$193) -> 2596458.893 | AA215: =IF($AA$36="kw",SUMPRODUCT(N$38:N$193,W$38:W$193,AA$38:AA$193),SUMPRODUCT(L$38:L$193,AA$38:AA$193)) -> 2329367.543 | AB215: =IF($AB$36="kw",SUMPRODUCT(N$38:N$193,W$38:W$193,AB$38:AB$193),SUMPRODUCT(L$38:L$193,AB$38:AB$193)) -> 2882673.004 | AC215: =IF(AC39="kw",SUMPRODUCT(N41:N196,T41:T196,AC41:AC196),SUMPRODUCT(I41:I196,AC41:AC196)) -> 0 | AD215: =IF(AD39="kw",SUMPRODUCT(N41:N196,T41:T196,AD41:AD196),SUMPRODUCT(I41:I196,AD41:AD196)) -> 0 | AE215: =IF(AE39="kw",SUMPRODUCT(N41:N196,T41:T196,AE41:AE196),SUMPRODUCT(I41:I196,AE41:AE196)) -> 0 | AF215: =IF(AF39="kw",SUMPRODUCT(N41:N196,T41:T196,AF41:AF196),SUMPRODUCT(I41:I196,AF41:AF196)) -> 0 | AG215: =IF(AG39="kw",SUMPRODUCT(N41:N196,T41:T196,AG41:AG196),SUMPRODUCT(I41:I196,AG41:AG196)) -> 0 | AH215: =IF(AH39="kw",SUMPRODUCT(N41:N196,T41:T196,AH41:AH196),SUMPRODUCT(I41:I196,AH41:AH196)) -> 0 | AI215: =IF(AI39="kw",SUMPRODUCT(N41:N196,T41:T196,AI41:AI196),SUMPRODUCT(I41:I196,AI41:AI196)) -> 0 | AJ215: =IF(AJ39="kw",SUMPRODUCT(N41:N196,T41:T196,AJ41:AJ196),SUMPRODUCT(I41:I196,AJ41:AJ196)) -> 0 | AK215: =IF(AK39="kw",SUMPRODUCT(N41:N196,T41:T196,AK41:AK196),SUMPRODUCT(I41:I196,AK41:AK196)) -> 0 | AL215: =IF(AL39="kw",SUMPRODUCT(N41:N196,T41:T196,AL41:AL196),SUMPRODUCT(I41:I196,AL41:AL196)) -> 0 | AN215: =IF(AM215=1,0,IF(AM215=0,0,1)) -> 0
B216: Note: LDC to make note of key assumptions included above | AN216: =IF(AM216=1,0,IF(AM216=0,0,1)) -> 0
AN217: =IF(AM217=1,0,IF(AM217=0,0,1)) -> 0
AN218: =IF(AM218=1,0,IF(AM218=0,0,1)) -> 0
... 957 more rows
